Cogmind - Beta 17.1 @@@ ROGUE MODE // 2026.09.10 @ 04:08:26 Player: Somberlain Result: Core destroyed Performance ------------- Evolutions (9) 4500 Regions Visited (31) 6200 Robots Destroyed (381) 1905 Value Destroyed (22638) 22638 Prototype IDs (53) 1060 Alien Tech Used (6) 1200 Bonus (13010) 13010 TOTAL SCORE: 50513 Bonus ------- High Alert Combat Kills 723 Follower Combat Kills 3006 Entered Garrisons 600 Used RIF Installer 2500 Entered DSFs 500 Met Zhirov 300 MAIN.C Attacked Proxy Base 500 Built Enhanced Grunts 300 A7 Reached Mainframe 300 Met R17 at Cetus 500 Met R17 at Research 2000 Scanned by Researcher 500 Met Sigix 2000 Friendly Fire -719 Cogmind --------- Core Integrity 0/1600 Matter 222/300 Energy 100/100 System Corruption 13% Temperature Cool (0) Movement Core (50) Location -1/Access Parts ------- > --- POWER (4) -------- (None) > --- PROPULSION (4) --- (None) > --- UTILITY (13) ----- Advanced Signal Interpreter Advanced Target Analyzer Advanced Target Analyzer Advanced Target Analyzer Armor Integrity Analyzer Experimental Hacking Suite > --- WEAPON (4) ------- (None) > --- INVENTORY (5) ---- Phase Redirector Gamma Rifle Heavy Dispersion Rifle Sigix Containment Pod Peak State ------------ > --- POWER ------------ Quantum Reactor Light Quantum Reactor > --- PROPULSION ------- Experimental Biometal Heavy Treads Advanced Heavy Siege Treads > --- UTILITY ---------- Experimental Heat Sink Large Storage Unit Advanced Sensor Array Advanced Signal Interpreter Improved Armor Integrity Analyzer Advanced Phase Shifter Layered Heavy Armor Plating Layered Heavy Armor Plating Layered Heavy Armor Plating Improved System Guard > --- WEAPON ----------- Core Cannon Sigix Broadsword > --- INVENTORY -------- Light Particle Reactor Experimental Biometal Heavy Treads Advanced Heat Sink Phase Redirector Advanced Corruption Screen Transdimensional Reconstructor Subatomic Replicator Quantum Rifle Enhanced Hardcell Cannon Enhanced Hardcell Cannon Advanced Remote Datajack Improved Plasma Cutter Sigix Containment Pod [Rating: 203] Favorites ----------- Power Antimatter Reactor Engine Improved Deuterium Engine Power Core Fission Core Reactor Antimatter Reactor Propulsion Improved Carbon-fiber Leg Treads Centrium Heavy Treads Leg Improved Carbon-fiber Leg Hover Unit Gravmag System Utility Advanced Heat Sink Device Advanced Heat Sink Storage Medium Storage Unit Processor Advanced Signal Interpreter Hackware Advanced Hacking Suite Protection Centrium Medium Armor Plating Artifact Phase Redirector Weapon KE Penetrator Energy Gun Quantum Rifle Energy Cannon Core Cannon Ballistic Gun KE Penetrator Ballistic Cannon Hardcell Cannon Launcher Enhanced Gamma Bomb Array Special Weapon Remote Datajack Impact Weapon Power Maul Slashing Weapon Sigix Broadsword Piercing Weapon Enhanced Force Lance Special Melee Weapon Improved Datajack Build | -11 -10 -10 -9 -9 -9 -9 -7 -7 -7 -7 -7 -7 -6 -6 -6 -6 -6 -5 -5 -5 -5 -4 -4 -4 -4 -4 -4 -3 -2 -2 -1 ------- Run | Yrd Mat Min Mat Sto Gar Rec Fac Gar Fac Low Low Zio Pro Fac Gar Fac DSF Fac Upp Upp Zhi Pro Fac Ext Cet Arc Hub Res Res Qua Acc Slots Evolved 18 | . . . 2 . . . 4 . . . . . . 2 . . . 2 . . . . 2 . . . . 2 2 . 2 Power 3 | . . . . . . . . . . . . . . 1 . . . . . . . . . . . . . . . . 2 Propulsion 2 | . . . . . . . 1 . . . . . . . . . . 1 . . . . . . . . . . . . . Utility 11 | . . . 2 . . . 1 . . . . . . 1 . . . 1 . . . . 2 . . . . 2 2 . . Weapon 2 | . . . . . . . 2 . . . . . . . . . . . . . . . . . . . . . . . . Parts Attached 378 | 6 3 1 1 8 18 6 28 21 . 2 5 1 15 5 24 2 7 . 8 4 4 11 19 27 7 4 11 30 24 39 37 Power 52 | 1 . . . 2 2 . 2 2 . 1 . . 1 1 3 . 1 . . . . 2 2 6 3 . 2 4 5 4 8 Engine 11 | 1 . . . 1 1 . 2 1 . 1 . . . . . . 1 . . . . 1 . . . . . 1 . . 1 Core 10 | . . . . 1 1 . . . . . . . . 1 2 . . . . . . 1 . 3 1 . . . . . . Reactor 31 | . . . . . . . . 1 . . . . 1 . 1 . . . . . . . 2 3 2 . 2 3 5 4 7 Propulsion 56 | 2 . . . 2 7 . 8 . . 1 1 . 6 . 2 . 4 . 1 2 1 2 . 6 2 . . . 4 3 2 Treads 16 | . . . . . . . . . . . . . . . 2 . . . . . . 2 . 2 2 . . . 4 3 1 Leg 37 | 2 . . . 2 5 . 8 . . 1 1 . 6 . . . 4 . 1 2 . . . 4 . . . . . . 1 Wheel . | . . . . . . . . . . . . . . . . . . . . . . . . . . . . . . . . Hover 3 | . . . . . 2 . . . . . . . . . . . . . . . 1 . . . . . . . . . . Flight . | . . . . . . . . . . . . . . . . . . . . . . . . . . . . . . . . Utility 152 | 1 1 1 1 1 4 1 7 11 . . 4 1 4 3 7 2 2 . 5 2 2 3 12 8 2 2 5 16 10 22 12 Device 69 | . . . . 1 1 . 5 3 . . 2 1 3 3 2 . . . 2 1 1 3 5 5 . . 3 9 6 8 5 Storage 10 | 1 . 1 . . . . . . . . . . . . . . . . . . . . 2 . . . . . 2 3 1 Processor 23 | . 1 . . . . 1 . . . . 1 . . . . 2 . . 1 1 . . 2 2 . . . 1 1 5 5 Hackware 29 | . . . 1 . . . . 8 . . 1 . 1 . 5 . 1 . 1 . . . 3 . . 1 2 3 1 . 1 Protection 20 | . . . . . 3 . 2 . . . . . . . . . 1 . 1 . 1 . . 1 2 1 . 3 . 5 . Artifact 1 | . . . . . . . . . . . . . . . . . . . . . . . . . . . . . . 1 . Weapon 118 | 2 2 . . 3 5 5 11 8 . . . . 4 1 12 . . . 2 . 1 4 5 7 . 2 4 10 5 10 15 Energy Gun 63 | . . . . 2 3 2 7 1 . . . . . . 6 . . . 1 . . 2 3 6 . 1 1 9 3 6 10 Energy Cannon 8 | . . . . . . . 4 . . . . . . . 1 . . . . . . 1 . . . . 1 . . 1 . Ballistic Gun 21 | 2 . . . 1 1 3 . 4 . . . . 4 1 3 . . . . . . . . . . 1 . . . . 1 Ballistic Cannon 8 | . 2 . . . . . . . . . . . . . 1 . . . . . . . . . . . 2 . 2 1 . Launcher 4 | . . . . . . . . . . . . . . . . . . . . . . . . . . . . . . . 4 Special Weapon 8 | . . . . . 1 . . 2 . . . . . . . . . . 1 . 1 1 1 . . . . . . 1 . Impact Weapon 1 | . . . . . . . . 1 . . . . . . . . . . . . . . . . . . . . . . . Slashing Weapon 3 | . . . . . . . . . . . . . . . . . . . . . . . . 1 . . . 1 . 1 . Piercing Weapon 1 | . . . . . . . . . . . . . . . 1 . . . . . . . . . . . . . . . . Special Melee Weapon 1 | . . . . . . . . . . . . . . . . . . . . . . . 1 . . . . . . . . Unidentified Prototypes 25 | . . . . . . . 2 . . . . 1 . . . 1 . . . . 4 1 1 . 2 . . 4 3 4 2 Corrupted Parts 5 | . . . . . . . . . . . . . 2 . . . . . . . . 1 . . 1 . . . . . 1 System Corruption 26 | . . . . . . . . . . . . . 5 . . . . . . . . 10 . . 7 . . . . . 4 Parts Lost 99 | . . . . . 5 1 5 2 1 . 2 . . 1 3 . 2 . 2 . . 7 2 7 3 . . 1 9 17 29 Power 14 | . . . . . 1 . . . . . . . . . . . 1 . . . . 1 . 2 1 . . . 1 1 6 Propulsion 20 | . . . . . 3 . 1 . 1 . 1 . . . . . 1 . 1 . . 2 . 3 . . . . . 3 4 Utility 36 | . . . . . . 1 . . . . 1 . . 1 . . . . . . . 2 2 1 1 . . 1 5 10 11 Weapon 29 | . . . . . 1 . 4 2 . . . . . . 3 . . . 1 . . 2 . 1 1 . . . 3 3 8 Highest Loss Streak 12 | . . . . . 4 1 3 1 1 . 2 . . 1 2 . 1 . 1 . . 3 1 4 1 . . 1 3 7 12 To Critical Strikes 5 | . . . . . . . . . . . . . . . . . . . . . . . . 2 2 . . . . . 1 Average Backups 9 | . 3 7 7 9 7 9 9 9 10 9 9 9 9 8 9 10 9 9 9 10 9 9 8 8 9 9 8 8 10 10 11 Power . | . . 1 1 1 . . . . . . 1 1 . . . . . . . . . . . . . . . . . . . Propulsion . | . . . . 1 . . . . . . . . . . . 2 2 2 2 1 . . . . 1 1 1 1 2 1 . Utility 4 | . 1 3 2 2 2 5 5 6 7 6 5 5 5 5 5 5 4 4 4 5 6 6 4 3 2 4 3 3 2 2 1 Weapon 1 | . 1 3 4 5 3 4 2 1 2 1 1 1 1 1 2 1 1 1 1 1 1 1 1 1 1 1 1 1 1 2 6 Tool/Special . | . . . . . . . . . . . . . . . . . . . . . . . . . . . . . . . . Unused Backups 39 | . . . . . 6 1 4 4 . 1 1 1 3 2 4 . . . . 2 1 . 1 1 1 . . 1 2 1 2 Power 4 | . . . . . . 1 1 . . . 1 . 1 . . . . . . . . . . . . . . . . . . Propulsion 1 | . . . . . . . . . . . . . . . . . . . . . . . . . . . . . 1 . . Utility 26 | . . . . . 4 . . 4 . 1 . 1 2 2 4 . . . . 2 1 . 1 1 1 . . 1 . 1 . Weapon 6 | . . . . . 2 . 2 . . . . . . . . . . . . . . . . . . . . . 1 . 1 Tool/Special 2 | . . . . . . . 1 . . . . . . . . . . . . . . . . . . . . . . . 1 Average Slot Usage (%) 92 | . 96 100 88 89 99 94 96 97 96 96 99 100 99 96 98 99 97 94 96 100 99 92 87 89 86 88 88 89 89 77 80 Engine 1 | . 14 14 11 7 2 . 3 2 . . . . . . . . 1 5 5 5 5 1 . . . . . . . . . Core 1 | . . . . 3 8 11 3 . . . . . . 6 4 . . . . . . 3 1 2 3 . . . . . . Reactor 6 | . . . . . . . . 4 7 7 7 7 7 6 8 13 10 5 5 5 5 5 8 7 6 10 10 8 7 7 12 Treads 3 | . . . . . . . . . . . . . . . . . . . . . . 4 10 11 8 10 10 9 7 8 7 Leg 11 | . 28 28 22 21 9 . 21 23 19 19 22 23 22 20 19 20 19 23 20 23 22 12 . 1 2 . . . . . . Hover 1 | . . . . . 12 22 . . . . . . . . . . . . . . . . . . . . . . . . . Device 20 | . . . . 2 6 11 16 22 30 30 25 23 22 22 27 27 25 23 23 23 22 22 17 15 18 19 17 23 31 19 12 Storage 5 | . 14 14 11 11 5 11 7 7 7 7 7 7 7 6 6 6 6 5 5 5 5 5 4 5 5 5 5 4 4 5 5 Processor 8 | . 10 14 11 11 1 2 4 . . . 4 7 7 6 2 4 6 5 5 10 11 11 8 9 10 10 10 10 11 14 25 Hackware 3 | . . . 11 11 11 3 . 6 . . . . . . 3 . . . 1 . . . 13 11 . 1 3 . 1 . 2 Protection 3 | . . . . . 18 11 6 . . . . . . . . . . . 2 . . . . 1 9 10 9 11 5 5 . Energy Gun 13 | . . . . 14 15 15 23 14 . . . . . . 14 26 25 23 22 23 19 18 20 20 17 20 8 13 16 3 14 Ballistic Gun 6 | . 23 28 22 4 1 3 . 11 23 29 29 30 29 26 8 . . . . . . . . . . . . . . . . Ballistic Cannon 1 | . 4 . . 2 4 . . . . . . . . . 1 . . . . . . . . . . . 9 2 . 4 . Peak Build Rating 203 | 6 7 8 10 24 35 34 51 69 66 69 69 71 79 90 102 99 99 100 100 97 98 104 119 121 136 141 143 164 182 203 199 Average Rating 99 | 4 6 7 10 18 29 30 46 57 64 66 66 64 76 84 86 98 93 100 95 94 94 93 112 108 127 138 141 157 174 177 173 On Entrance 80 | . 6 7 8 10 24 34 33 51 66 62 69 65 65 78 87 98 99 93 100 97 94 98 96 114 110 132 140 141 159 175 175 Avg Prop Armor Cover (%) 5 | . . . . . 4 . . 4 . . . . . . 5 5 . . . 5 . 8 . 4 . . . . . 6 4 Naked Turns . | . . . . . . . . . . . . . . . . . . . . . . . . . . . . . . . . Heaviest Build 143 | 12 14 17 17 24 32 29 49 51 49 51 51 49 56 68 84 76 74 68 72 67 54 56 60 87 100 96 114 122 112 143 128 Greatest Support 170 | 20 20 20 20 28 28 18 56 56 56 58 58 55 75 75 75 75 75 94 94 91 86 145 145 145 160 160 160 160 170 170 170 Greatest Overweight (x) 36 | . . . . 4 5 1 2 1 1 1 1 . 1 . 3 1 3 . 1 . . 1 . 3 1 . . . 1 1 36 Average Overweight (x) . | . . . . . . 1 . . . . . . . . . . . . . . . . . . . . . . . . . Largest Inventory Capacity 20 | 8 8 10 10 10 10 10 10 10 10 10 10 10 10 10 10 10 10 10 10 10 10 10 10 10 10 10 10 10 15 15 20 Average Capacity 10 | 7 8 8 10 10 7 10 10 10 10 10 10 10 10 10 10 10 10 10 10 10 10 10 9 10 10 10 10 10 13 15 15 Most Carried 20 | . 7 8 7 10 10 10 10 10 10 10 10 10 10 10 10 10 10 10 10 10 10 10 10 10 10 10 10 10 15 15 20 Average Carried 10 | . 3 7 7 9 7 9 9 9 10 9 9 9 9 9 9 10 9 9 9 9 9 9 9 9 9 9 9 9 12 13 14 Final Capacity 15 | 8 8 10 10 10 10 10 10 10 10 10 10 10 10 10 10 10 10 10 10 10 10 10 10 10 10 10 10 10 15 15 5 Final Carried 15 | . 7 8 7 10 10 10 10 10 10 10 10 10 10 10 10 10 10 10 10 10 10 10 10 8 10 10 10 10 15 15 5 Class Distribution -------------------- 20% | Scavenger-Tank 18% | Bothacker-Gunner 18% | Scavenger-Gunner 8% | Gunner 7% | Derelict-Gunner 7% | Scavenger-Mutant 6% | Hacker-Tank 5% | Mutant 3% | Bothacker-Tank Dominant Class ---------------- Mutant | -10/Materials Mutant | -10/Mines Mutant | -9/Materials Mutant | -9/Storage Scavenger-Mutant | -9/Garrison Scavenger-Mutant | -9/Recycling Gunner | -7/Factory Bothacker-Gunner | -7/Garrison Bothacker-Gunner | -7/Factory Bothacker-Gunner | -7/Lower Caves Bothacker-Gunner | -7/Lower Caves Bothacker-Gunner | -7/Zion Scavenger-Gunner | -6/Proximity Caves Scavenger-Gunner | -6/Factory Scavenger-Tank | -6/Garrison Scavenger-Gunner | -6/Factory Gunner | -6/DSF Gunner | -5/Factory Gunner | -5/Upper Caves Derelict-Gunner | -5/Upper Caves Derelict-Gunner | -5/Zhirov Derelict-Gunner | -4/Proximity Caves Hacker-Tank | -4/Factory Hacker-Tank | -4/Extension Scavenger-Tank | -4/Cetus Scavenger-Tank | -4/Archives Scavenger-Tank | -4/Hub_04(d) Scavenger-Tank | -3/Research Scavenger-Tank | -2/Research Scavenger-Tank | -2/Quarantine Scavenger-Gunner | -1/Access Resources | -11 -10 -10 -9 -9 -9 -9 -7 -7 -7 -7 -7 -7 -6 -6 -6 -6 -6 -5 -5 -5 -5 -4 -4 -4 -4 -4 -4 -3 -2 -2 -1 ----------- Run | Yrd Mat Min Mat Sto Gar Rec Fac Gar Fac Low Low Zio Pro Fac Gar Fac DSF Fac Upp Upp Zhi Pro Fac Ext Cet Arc Hub Res Res Qua Acc Matter Collected 12275 | 223 18 111 . 303 647 261 413 618 . 99 578 33 1556 99 1127 . 225 . 158 40 105 210 420 492 161 126 916 594 422 1472 848 Remotely . | . . . . . . . . . . . . . . . . . . . . . . . . . . . . . . . . Salvage Created 20869 | . 147 . . 484 581 435 929 439 60 69 660 . 1452 70 1199 . 280 . 434 103 230 817 1333 1596 293 386 1054 1469 2192 1418 2739 Parts 791 | . 13 . . 25 31 19 39 14 4 2 32 . 74 2 53 . 10 . 16 11 1 25 45 49 12 10 47 45 61 63 88 Haulers Intercepted 10 | . . . . 1 . . . . . . . . . . . . . . . . . . 1 . . . 2 1 2 . 3 Recyclers Shooed 6 | . . . . 1 . 2 1 . . . 1 . . . . . . . . . . . 1 . . . . . . . . Parts Field Recycled . | . . . . . . . . . . . . . . . . . . . . . . . . . . . . . . . . Retrieved Matter . | . . . . . . . . . . . . . . . . . . . . . . . . . . . . . . . . Parts Self-Destructed 160 | . . . . . . . . . . 2 15 . 92 . . . . . 12 11 1 27 . . . . . . . . . Prevented 47 | . . . . . . . . . . . . . 45 . . . . . . . . 2 . . . . . . . . . Parts Restored 2 | . . . . . . . . . . . . . . . . 1 . . . . . . . . . . 1 . . . . Broken 2 | . . . . . . . . . . . . . . . . 1 . . . . . . . . . . 1 . . . . Kills | -11 -10 -10 -9 -9 -9 -9 -7 -7 -7 -7 -7 -7 -6 -6 -6 -6 -6 -5 -5 -5 -5 -4 -4 -4 -4 -4 -4 -3 -2 -2 -1 ------- Run | Yrd Mat Min Mat Sto Gar Rec Fac Gar Fac Low Low Zio Pro Fac Gar Fac DSF Fac Upp Upp Zhi Pro Fac Ext Cet Arc Hub Res Res Qua Acc Combat Hostiles Destroyed 306 | . 2 . . 5 18 4 18 8 1 1 14 . 24 1 23 . 5 . 6 2 . 18 13 20 3 1 17 18 27 26 31 Melee 4 | . . . . . . . . . . . . . . . . . . . . . . . . . . . . . . 4 . Guns 214 | . . . . 3 3 4 15 8 1 1 14 . 24 1 18 . 5 . 4 2 . 17 11 18 1 . 6 15 19 4 20 Cannons 57 | . 2 . . 2 13 . 3 . . . . . . . 3 . . . . . . . . . . . 11 1 1 15 6 AOE 4 | . . . . . 1 . . . . . . . . . . . . . . . . . 1 . . . . . . 2 . Classes Destroyed 23 | . 4 . . 4 2 2 . 1 . . 1 . 2 . 1 . . . . . . . 1 . . . 1 1 1 2 . Worker 7 | . 1 . . 2 . . . . . . . . . . . . . . . . . . 2 . . . . . 1 . 1 Builder 2 | . . . . . . . . . . . . . . . . . . . . . . . . . . . . . 1 . 1 Tunneler 2 | . . . . . . . . . . . . . . . . . . . . . . . 2 . . . . . . . . Hauler 10 | . . . . 1 . . . . . . . . . . . . . . . . . . 1 . . . 2 1 2 . 3 Recycler 14 | . . . . 2 . 4 1 . . . . . . . . . . . . . . . 2 2 . . 1 . . 1 1 Mechanic 1 | . . . . 1 . . . . . . . . . . . . . . . . . . . . . . . . . . . Operator 12 | . 1 . . . . . . . . . . . . . . . . . . . . . . 1 . 7 . 2 . . 1 Watcher 21 | . 2 . . . . . 1 . . . . . . . . . . . . . . . 2 1 2 . 1 2 1 3 6 Swarmer 53 | . . . . . 3 1 4 . . . 4 . 5 . 8 . . . . . . 8 . 5 . . 3 3 3 . 6 Grunt 96 | . 2 . . 4 10 . 6 4 . . 3 . 11 . 7 . 3 . 3 . . 3 6 9 1 . 2 8 1 4 9 Brawler 5 | . . . . . . . . 3 . . 1 . 1 . . . . . . . . . . . . . . . . . . Duelist 9 | . . . . . . 1 2 . . . . . 2 . 1 . 2 . 1 . . . . . . . . . . . . Protector 3 | . . . . . . 1 . . . . . . 1 . 1 . . . . . . . . . . . . . . . . Researcher 1 | . . . . . . . . . . . . . . . . . . . . . . . . . . . . . . 1 . Sentry 28 | . . . . 1 2 . 3 . 1 1 . . 1 . 5 . . . . . . 1 1 4 . 1 1 2 3 . 1 Demolisher 1 | . . . . . . . . . . . . . . . 1 . . . . . . . . . . . . . . . . Specialist 4 | . . . . . . . . . . . . . 1 . . . . . . . . 3 . . . . . . . . . Hunter 28 | . . . . . . . . . . . . . 3 1 . . . . 1 . . 2 . 1 . . 2 . 7 6 5 Programmer 60 | . . . . . 3 1 3 1 . . . . . . . . . . 2 2 . 1 6 1 . . 8 . 13 11 8 Heavy 1 | . . . . . . . . . . . . . . . . . . . . . . . . . . . 1 . . . . Q-Series 4 | . . . . . . . . . . . . . . . . . . . . . . . . . . . . . . 2 2 Cetus Guard 2 | . . . . . . . . . . . . . . . . . . . . . . . . . 2 . . . . . . Lightning 3 | . . . . . . . . . . . . . . . . . . . . . . . . . . . . . . 3 . Striker 5 | . . . . . . . . . . . . . . . . . . . . . . . . . . . . 5 . . . Thug 2 | . . . . . . . . . . . 1 . . . . . . . . . . . . . . 1 . . . . . Savage 2 | . . . . . . . . . . . 1 . . . . . . . 1 . . . . . . . . . . . . Butcher 3 | . . . . . . . . . . . 3 . . . . . . . . . . . . . . . . . . . . Mutant 1 | . . . . . . . . . . . 1 . . . . . . . . . . . . . . . . . . . . Infiltrator 1 | . . . . . . . . . . . . . 1 . . . . . . . . . . . . . . . . . . Best Kill Streak 12 | . 2 . . 5 3 4 5 2 1 1 5 . 8 1 6 . 2 . 4 2 . 4 4 3 2 3 5 6 6 4 12 Combat Bots Only 8 | . 2 . . 3 3 3 3 2 1 1 5 . 8 1 6 . 2 . 4 2 . 4 4 3 2 1 5 6 6 4 8 Max Kills in Single Turn 3 | . 2 . . 2 1 1 1 2 1 1 3 . 3 1 3 . 1 . 1 1 . 2 2 2 1 1 1 2 2 2 3 Gunslinging 2 | . . . . . . . . 1 . . 2 . 1 . 2 . . . . . . 1 . 1 . . . . 1 . 1 Exploded 1 | . . . . . 1 . . . . . . . . . . . . . . . . . 1 . . . . . . 1 . Melee 1 | . . . . . . . . . . . . . . . . . . . . . . . . . . . . . . 1 . Uniques/NPCs Destroyed . | . . . . . . . . . . . . . . . . . . . . . . . . . . . . . . . . Combat | -11 -10 -10 -9 -9 -9 -9 -7 -7 -7 -7 -7 -7 -6 -6 -6 -6 -6 -5 -5 -5 -5 -4 -4 -4 -4 -4 -4 -3 -2 -2 -1 -------- Run | Yrd Mat Min Mat Sto Gar Rec Fac Gar Fac Low Low Zio Pro Fac Gar Fac DSF Fac Upp Upp Zhi Pro Fac Ext Cet Arc Hub Res Res Qua Acc Hostile Shots Fired 2353 | . 13 . . 34 120 11 142 41 24 18 20 10 90 6 212 . 38 . 53 8 . 86 58 149 37 7 50 96 235 411 384 Missed 714 | . 5 . . 9 24 2 55 16 15 5 4 4 30 3 94 . 14 . 23 4 . 25 19 41 16 2 20 26 62 100 96 Hits 1639 | . 8 . . 25 96 9 87 25 9 13 16 6 60 3 118 . 24 . 30 4 . 61 39 108 21 5 30 70 173 311 288 Melee 14 | . . . . . . 3 4 . . . 6 . 1 . . . . . . . . . . . . . . . . . . Projectile 1625 | . 8 . . 25 96 6 83 25 9 13 10 6 59 3 118 . 24 . 30 4 . 61 39 108 21 5 30 70 173 311 288 AOE 10 | . . . . . . . . . . . . . . . 2 . . . . . . . . . . . . 3 . . 5 Critical Strikes 77 | . . . . 2 3 1 5 1 . . . . 2 . 1 . 1 . . 1 . 2 1 6 4 . 1 6 9 20 11 Part Disruptions 12 | . 1 . . . 1 . . 1 . . . . . . . . . . . 1 . 3 . . . . . . . 3 2 Damage Taken 30927 | . 102 . . 352 1263 177 1238 395 110 94 387 . 961 38 862 . 363 . 386 40 . 979 744 1804 403 115 529 1276 3604 8242 6463 Core 3012 | . 3 . . 94 238 15 133 44 . 5 38 . 72 . 89 . 49 . 19 . . 130 14 93 . 26 40 32 294 256 1328 Absorbed by Shields 2903 | . . . . . . . . . . . . . 61 . 663 . 128 . 160 41 . . . 341 177 84 246 725 277 . . Reduced by Siege Mode 1704 | . . . . . . . . . . . . . . . . . . . . . . 9 54 85 . . . 58 516 524 458 Redirected to Core 88 | . . . . . . . . . . . . . . . . . . . . . . . . . . . . . . 88 . Ignored by Resistances 267 | . . . . . . . 2 12 . . . . . . . . . . . . . . 97 156 . . . . . . . Regen/Repaired (Parts) 340 | . . . . . . . . . . . . . 72 . . . . . . . . . . . . . . . . 268 . Core Remaining (%) 72 | 100 . 98 . . . 13 . . . . . . 58 . . . 83 . . . . 85 . . . . 84 97 . 33 . Volleys Fired 1011 | . 15 . . 25 63 27 48 43 7 2 25 . 66 2 88 . 13 1 17 3 11 39 50 70 17 19 45 53 75 93 94 Largest 4 | . 2 . . 2 2 2 4 4 3 4 4 . 4 4 4 . 4 4 4 4 1 4 4 4 4 4 4 4 4 4 4 Hottest 476 | . 60 . . 131 131 110 298 304 99 132 132 . 136 132 348 . 362 362 362 337 80 337 463 476 318 331 302 361 364 334 376 Shots Fired 3014 | . 30 . . 50 123 54 139 110 14 8 93 1 192 8 225 . 44 4 55 12 11 114 188 264 59 67 165 198 288 201 297 Gun 2500 | . 24 . . 38 47 52 109 94 10 8 92 1 168 8 179 . 42 4 53 12 7 106 184 261 57 67 58 176 281 80 282 Cannon 410 | . 6 . . 12 70 . 21 . . . . . . . 37 . . . . . . 1 . . . . 107 21 7 120 8 Launcher 7 | . . . . . . . . . . . . . . . . . . . . . . . . . . . . . . . 7 Special 97 | . . . . . 6 2 9 16 4 . 1 . 24 . 9 . 2 . 2 . 4 7 4 3 2 . . 1 . 1 . Kinetic 816 | . 30 . . 24 71 35 8 16 10 8 92 1 168 8 142 . . . . . . . . . . . 82 6 7 97 11 Thermal 1935 | . . . . 26 30 2 110 78 . . . . . . 74 . 42 4 54 12 7 106 184 261 58 67 83 191 281 79 186 Explosive . | . . . . . . . . . . . . . . . . . . . . . . . . . . . . . . . . Electromagnetic 185 | . . . . . 22 17 21 . . . . . . . . . . . . . . 1 . . . . . . . 24 100 Robot Hit Streak 51 | . 7 . . 6 9 10 11 8 3 3 7 . 16 2 16 . 7 3 10 7 19 30 51 25 13 9 20 27 17 16 17 Robot Miss Streak 9 | . 2 . . 8 3 2 4 6 3 3 4 . 9 3 4 . 2 1 2 3 1 3 6 4 2 2 3 4 3 7 5 Penetration Max 1 | . . . . . . . . . . . 1 . 1 . 1 . . . . . . . . . . . . . . 1 1 Secondary Targets 47 | . . . . . . . 1 2 . . 5 . 9 . 3 . . . 3 1 . 4 1 5 . . . 3 6 . 4 Max Gunslinging Chain 2 | . . . . . . . 1 1 . . 2 . 1 . 2 . . . 1 1 . 1 1 1 . . . 1 1 . 1 Shots Hit Robots 1856 | . 20 . . 27 56 32 88 55 6 4 48 . 103 2 126 . 32 3 41 8 11 70 113 179 42 48 97 136 179 128 202 Core Hits 807 | . 7 . . 16 24 11 51 23 2 2 23 . 47 2 73 . 18 1 20 4 10 43 43 63 16 21 34 51 65 56 81 Critical Kills 27 | . . . . . . . . . . . 1 . 4 1 3 . . . . . . . . 1 . . . . . 4 13 Critical Parts Destroyed 58 | . . . . . . . . . . . . . 7 . 6 . . . . . . . . . . . . . . 10 35 Critical Strikes 168 | . . . . 1 1 . . 2 . 1 1 . 11 1 13 . . . 1 . . 2 5 11 2 3 3 8 19 25 58 Burn 56 | . . . . . 1 . . 2 . . . . . . . . . . 1 . . 2 5 10 2 3 . 8 18 4 . Destroy 90 | . . . . . . . . . . 1 1 . 11 1 11 . . . . . . . . 1 . . . . . 14 50 Blast 13 | . . . . 1 . . . . . . . . . . 2 . . . . . . . . . . . 3 . 1 6 . Corrupt 8 | . . . . . . . . . . . . . . . . . . . . . . . . . . . . . . . 8 Sever 1 | . . . . . . . . . . . . . . . . . . . . . . . . . . . . . . 1 . Melee Attacks 54 | . . . . . . . . 26 . . . . . . 3 . . . 1 . . . 3 . . . . 2 2 17 . Impact 26 | . . . . . . . . 26 . . . . . . . . . . . . . . . . . . . . . . . Slashing 21 | . . . . . . . . . . . . . . . . . . . . . . . . . . . . 2 2 17 . Piercing 7 | . . . . . . . . . . . . . . . 3 . . . 1 . . . 3 . . . . . . . . Sneak Attacks . | . . . . . . . . . . . . . . . . . . . . . . . . . . . . . . . . Combat Hostiles . | . . . . . . . . . . . . . . . . . . . . . . . . . . . . . . . . Follow-up Attacks . | . . . . . . . . . . . . . . . . . . . . . . . . . . . . . . . . Damage Inflicted 58334 | . 344 . . 561 1097 388 1767 1184 125 108 1530 . 2207 10 2778 . 867 81 1054 227 237 2190 3301 4871 968 1213 3455 4461 6170 8779 8361 Guns 43837 | . 195 . . 448 426 388 1480 1075 125 108 1530 . 2207 10 2413 . 867 81 1054 227 237 2190 3211 4871 968 1213 1166 4030 6041 1381 5895 Cannons 11987 | . 68 . . 113 643 . 273 . . . . . . . 365 . . . . . . . . . . . 2289 431 129 5926 1750 Explosions 1750 | . 81 . . . 28 . . 109 . . . . . . . . . . . . . . 82 . . . . . . 740 710 Melee 471 | . . . . . . . . . . . . . . . . . . . . . . . . . . . . . . 471 . Ramming 289 | . . . . . . . 14 . . . . . . . . . . . . . . . 8 . . . . . . 261 6 Kinetic 11714 | . 263 . . 334 643 388 82 . 125 108 1530 . 2207 10 1597 . . . . . . . . . . . 1821 67 129 2206 204 Thermal 42222 | . . . . 227 392 . 1477 1075 . . . . . . 1181 . 867 81 1054 227 237 2190 3211 4871 968 1213 1634 4394 6041 4962 5920 Explosive 647 | . . . . . . . . 109 . . . . . . . . . . . . . . 82 . . . . . . 407 49 Electromagnetic 2991 | . 81 . . . 62 . 194 . . . . . . . . . . . . . . . . . . . . . . 472 2182 Impact . | . . . . . . . . . . . . . . . . . . . . . . . . . . . . . . . . Slashing 471 | . . . . . . . . . . . . . . . . . . . . . . . . . . . . . . 471 . Piercing . | . . . . . . . . . . . . . . . . . . . . . . . . . . . . . . . . Highest Corruption 37 | . 1 1 . . 4 6 2 3 3 3 3 3 5 . . . . . 1 1 1 10 3 4 11 11 13 . 18 37 13 Average Corruption 6 | . 1 1 . . 3 5 1 2 3 3 3 3 4 . . . . . 1 1 1 3 2 3 6 11 11 . 11 25 3 Corruption Purged 1 | . . . . . . . . . . . . . . . . . . . . . . 1 . . . . . . . . . Corruption Blocked 18 | . . . . . . . . . . . . . . . . . . . . . . . . . . . . . . 4 14 Effects 526 | . . 2 . . 17 32 11 39 5 13 31 3 2 . . . . . 6 10 1 14 17 32 18 20 59 . 48 129 17 Message Errors 122 | . . 2 . . 3 9 3 8 . 6 10 1 1 . . . . . 2 4 1 4 1 5 4 2 17 . 12 22 5 Matter Fused 136 | . . . . . 7 5 2 10 1 5 6 1 . . . . . . 1 . . 3 4 9 7 7 16 . 15 31 6 Heat Flow Errors 52 | . . . . . 2 2 1 9 1 . 3 . . . . . . . . . . . 3 5 2 3 4 . 3 13 1 Energy Discharges 42 | . . . . . 2 3 1 2 . 1 2 . . . . . . . 1 1 . 2 . 4 . 2 4 . 3 14 . Parts Rejected 8 | . . . . . . . . 1 . . . . . . . . . . . . . . 1 . . 1 . . 1 2 2 Parts Fused 3 | . . . . . . 1 . . . . 1 . . . . . . . . . . . . 1 . . . . . . . Data Loss (minor) 72 | . . . . . . 8 3 5 . 1 7 . . . . . . . 2 4 . 3 3 4 1 2 7 . 4 18 . Data Loss (major) 19 | . . . . . . . 1 1 . . 1 . 1 . . . . . . . . 1 . 3 . 1 6 . 1 3 . Misfires 22 | . . . . . 3 3 . . 2 . . 1 . . . . . . . . . . 4 . 2 . . . 3 3 1 Alerts 17 | . . . . . . . . 3 . . 1 . . . . . . . . 1 . 1 . . 1 . 2 . 3 4 1 Misdirections 5 | . . . . . . . . . . . . . . . . . . . . . . . . . . . . . . 5 . Weapon Failures 28 | . . . . . . 1 . . 1 . . . . . . . . . . . . . 1 1 1 2 3 . 3 14 1 Overload Shots 14 | . . . . . . . . . . . . . . . . . . . . . . . 12 2 . . . . . . . Effects 1 | . . . . . . . . . . . . . . . . . . . . . . . . 1 . . . . . . . Energy Bleed 1 | . . . . . . . . . . . . . . . . . . . . . . . . 1 . . . . . . . Overflow Damage 2523 | . . . . . . . . . . . . . . . 5 . . . . . . . . . . . 126 8 . 1245 1139 Projectiles 2421 | . . . . . . . . . . . . . . . 5 . . . . . . . . . . . 126 8 . 1207 1075 Explosions 96 | . . . . . . . . . . . . . . . . . . . . . . . . . . . . . . 32 64 Melee 6 | . . . . . . . . . . . . . . . . . . . . . . . . . . . . . . 6 . Knockbacks 40 | . . . . 1 5 . . . . . . . . . 2 . . . . . . . . . . . 10 . . 22 . Impact 2 | . . . . . . . . . . . . . . . . . . . . . . . . . . . . . . 2 . Kinetic 37 | . . . . 1 5 . . . . . . . . . 2 . . . . . . . . . . . 10 . . 19 . Secondary 1 | . . . . . . . . . . . . . . . . . . . . . . . . . . . . . . 1 . Self-Inflicted Damage 104 | . 15 . . . . . . . . . . . . . . . . . . . . . 47 . . . . . . 24 18 Shots 4 | . 1 . . . . . . . . . . . . . . . . . . . . . 1 . . . . . . 1 1 Rammed 35 | . . . . . . . . . . . . . . . . . . . . . . . 1 . . . . . . 32 2 Targets Rammed 37 | . . . . . . . 1 . . . . . . . . . . . . . . . 1 . . . . . . 33 2 Kicked 1 | . . . . . . . 1 . . . . . . . . . . . . . . . . . . . . . . . . Crushed 1 | . . . . . . . . . . . . . . . . . . . . . . . . . . . . . . 1 . Highest Temperature 399 | . 18 . . 216 315 215 326 315 80 103 274 . 287 75 290 . 370 138 399 108 . 273 193 399 222 375 314 377 328 269 389 Average Temperature 110 | . 13 . . 73 120 51 124 102 41 59 115 . 102 38 115 . 111 63 162 44 . 97 65 136 79 87 99 151 132 77 96 Received Heat Transfer 3109 | . 48 . . 219 216 27 450 126 . 24 27 . 279 . 206 . 135 . 135 . . 57 123 319 9 . 10 106 44 306 243 Effects 27 | . . . . . . . . . . . . . 2 . . . 1 . 2 . . 1 . 4 . 1 1 4 4 . 7 Shutdowns 4 | . . . . . . . . . . . . . . . . . . . . . . . . 3 . . . . . . 1 Energy Bleed 10 | . . . . . . . . . . . . . . . . . . . 1 . . 1 . 1 . . 1 4 2 . . Interference 12 | . . . . . . . . . . . . . 2 . . . . . 1 . . . . . . 1 . . 2 . 6 Damage (minor) 1 | . . . . . . . . . . . . . . . . . 1 . . . . . . . . . . . . . . Siege Activations 47 | . . . . . . . . . . . . . . . . . . . . . . 1 7 3 . . . 3 14 11 8 Total Turns 1056 | . . . . . . . . . . . . . . . . . . . . . . 16 278 52 . . . 64 245 233 168 Longest Duration 97 | . . . . . . . . . . . . . . . . . . . . . . 16 97 32 . . . 47 44 41 46 Martial Activations . | . . . . . . . . . . . . . . . . . . . . . . . . . . . . . . . . Shielding Activations . | . . . . . . . . . . . . . . . . . . . . . . . . . . . . . . . . Robots Disrupted 2 | . . . . . . . . . . . . . . . . . . . . . . . . . . . . . . 1 1 Combat Hostiles 2 | . . . . . . . . . . . . . . . . . . . . . . . . . . . . . . 1 1 Robots Corrupted 10 | . . . . . . . . . . . . . . . . . . . . . . . . . . . . . . 1 9 Combat Hostiles 6 | . . . . . . . . . . . . . . . . . . . . . . . . . . . . . . 1 5 Parts Fried 20 | . . . . . . . . . . . . . . . . . . . . . . . . . . . . . . 5 15 Impact Corruptions 1 | . . . . . . . . . . . . . . . . . . . . . . . . . . . . . . 1 . Robots Melted 24 | . . . . . 1 . . . . . . . . . 2 . . . 3 . . 1 2 2 2 2 . 2 7 . . Combat Hostiles 21 | . . . . . 1 . . . . . . . . . 2 . . . 2 . . 1 1 2 2 1 . 2 7 . . Parts Melted 180 | . . . . 1 3 . 8 7 . . . . . . 4 . . . 6 . . 12 20 18 3 9 4 19 57 1 8 Heat Transferred 59361 | . . . . 481 703 . 2944 2330 . . . . . . 2061 . 1377 124 1761 335 286 3400 5741 8145 1814 2247 2167 6655 9620 2014 5156 Parts Sabotaged . | . . . . . . . . . . . . . . . . . . . . . . . . . . . . . . . . Parts Stolen . | . . . . . . . . . . . . . . . . . . . . . . . . . . . . . . . . Parts Stripped . | . . . . . . . . . . . . . . . . . . . . . . . . . . . . . . . . Power Chain Reactions 3 | . . . . . 1 . . . . . . . . . . . . . . . . . . . . . . . . 1 1 Alert | -11 -10 -10 -9 -9 -9 -9 -7 -7 -7 -7 -7 -7 -6 -6 -6 -6 -6 -5 -5 -5 -5 -4 -4 -4 -4 -4 -4 -3 -2 -2 -1 ------- Run | Yrd Mat Min Mat Sto Gar Rec Fac Gar Fac Low Low Zio Pro Fac Gar Fac DSF Fac Upp Upp Zhi Pro Fac Ext Cet Arc Hub Res Res Qua Acc Maximum Alert Level 5 | . . . . . 3 1 . 5 3 . . . . . 3 2 2 1 . . . . . 1 . . 2 1 1 2 1 Low Security (%) 58 | 100 100 100 100 100 10 73 100 7 . . . . . 100 7 . . . . . . . 100 88 100 100 61 81 62 48 67 Level 1 16 | . . . . . 13 26 . 18 . . . . . . 17 . 38 100 . . . . . 11 . . 18 18 37 22 32 Level 2 13 | . . . . . 72 . . 19 . . . . . . 20 100 61 . . . . . . . . . 19 . . 29 . Level 3 8 | . . . . . 4 . . 28 100 . . . . . 55 . . . . . . . . . . . . . . . . Level 4 2 | . . . . . . . . 21 . . . . . . . . . . . . . . . . . . . . . . . Level 5 . | . . . . . . . . 4 . . . . . . . . . . . . . . . . . . . . . . . High Security . | . . . . . . . . . . . . . . . . . . . . . . . . . . . . . . . . Max Security . | . . . . . . . . . . . . . . . . . . . . . . . . . . . . . . . . Sterilizations 1 | . . . . . . . . . . . . . . . . . 1 . . . . . . . . . . . . . . Peak Influence 1616 | . 102 22 . 131 760 342 194 1616 848 . . . . 37 1082 576 501 262 . . . . 91 260 135 166 510 280 298 533 308 Initial 848 | . . 22 . . 65 342 21 124 848 . . . . 37 . 567 354 262 . . . . 16 23 128 38 5 263 127 165 308 Average 273 | . 55 3 . 49 475 172 42 749 810 . . . . 7 679 543 415 244 . . . . 30 88 69 100 221 140 115 279 193 Influence Increases 12904 | . 134 . . 215 745 179 498 1652 31 20 180 . 679 33 1152 9 187 2 157 74 8 410 389 1037 402 208 1196 569 763 1190 785 Destroy 0b10 Robot/C 6035 | . 40 . . 100 360 120 360 380 20 20 160 . 560 20 445 . 120 . 90 30 . 285 195 480 180 60 465 270 405 405 465 Destroy 0b10 Robot/NC 328 | . 20 . . 30 . 25 10 . . . . . 5 . 14 . . . . . 8 . 36 16 8 28 20 20 20 16 52 Destroy Leader 952 | . 14 . . 32 30 . 92 10 10 . 20 . 30 10 30 . 16 . 16 8 . 24 54 66 8 . 118 62 110 86 106 Allied During Kill 1082 | . . . . 4 . 15 . 64 . . . . 69 . 5 . 3 . 3 . . 5 . 289 158 88 379 . . . . Successful Hack 158 | . . . . . 18 17 36 . . . . . . . . 9 . . . . . . . 30 10 . 6 32 . . . Disable Machine 642 | . 60 . . . . . . 15 . . . . . . 15 . 12 . . . . . 36 48 24 12 60 36 12 276 36 Anti-Garrison Action 1876 | . . . . . 250 . . 1050 . . . . . . 463 . . . . . . . . . . . . 113 . . . Destroy Structure 1204 | . . . . 4 57 2 . 103 1 . . . . 3 105 . . 2 . . . . 56 24 14 20 136 36 156 395 90 Lose Combat Pursuer 627 | . . . . 45 30 . . 30 . . . . 15 . 75 . 36 . 48 36 . 96 12 84 . . 12 . 60 12 36 Influence Decreases 12729 | . 77 57 . 114 86 886 373 214 878 611 358 . 620 92 70 585 192 279 381 74 8 384 366 856 537 287 710 844 696 969 1125 Entered New Map 3555 | . . 35 . . 36 418 32 54 768 285 34 . . 22 . 515 152 239 84 . . . 10 26 102 57 11 239 100 129 207 Time Decay 7365 | . 77 22 . 100 . 458 311 . 100 326 304 . 500 70 . 70 . 40 277 74 8 325 342 582 323 230 457 595 506 650 618 Lost Part 915 | . . . . . 50 10 30 20 10 . 20 . . . 30 . 20 . 20 . . 39 14 62 30 . . 10 90 170 290 Lost Ally 708 | . . . . 14 . . . 140 . . . . 120 . 40 . 20 . . . . 20 . 142 82 . 100 . . 20 10 Purge Threat 186 | . . . . . . . . . . . . . . . . . . . . . . . . 44 . . 142 . . . . Squads Dispatched 60 | . 2 . . 1 . . 4 . . . . . 1 1 . . . . . . . 1 7 2 1 . 7 9 7 9 8 Investigation 15 | . . . . 1 . . 1 . . . . . 1 1 . . . . . . . . 1 . 1 . 1 5 1 1 1 Extermination 26 | . . . . . . . 3 . . . . . . . . . . . . . . . 4 . . . 4 . 4 6 5 Reinforcement 14 | . 2 . . . . . . . . . . . . . . . . . . . . . . 2 . . 1 4 2 1 2 Assault 2 | . . . . . . . . . . . . . . . . . . . . . . 1 . . . . . . . 1 . Garrison 3 | . . . . . . . . . . . . . . . . . . . . . . . 2 . . . 1 . . . . Intercept . | . . . . . . . . . . . . . . . . . . . . . . . . . . . . . . . . Searches Triggered . | . . . . . . . . . . . . . . . . . . . . . . . . . . . . . . . . Construction Impeded 3 | . . . . . . . . . . . . . . . . . . . . . . . . 1 . . . . 1 . 1 Haulers Reinforced 1 | . . . . . . . . . . . . . . . . . . . . . . . . . . . . . . . 1 Active Scanning Responses . | . . . . . . . . . . . . . . . . . . . . . . . . . . . . . . . . Cargo Convoy Interrupts . | . . . . . . . . . . . . . . . . . . . . . . . . . . . . . . . . Stealth | -11 -10 -10 -9 -9 -9 -9 -7 -7 -7 -7 -7 -7 -6 -6 -6 -6 -6 -5 -5 -5 -5 -4 -4 -4 -4 -4 -4 -3 -2 -2 -1 --------- Run | Yrd Mat Min Mat Sto Gar Rec Fac Gar Fac Low Low Zio Pro Fac Gar Fac DSF Fac Upp Upp Zhi Pro Fac Ext Cet Arc Hub Res Res Qua Acc Distress Signals 23 | . . . . 2 . . . . . . . . . . . . . . . . . . 2 . 2 . 4 3 5 2 3 Communications Jammed . | . . . . . . . . . . . . . . . . . . . . . . . . . . . . . . . . Distress Signals . | . . . . . . . . . . . . . . . . . . . . . . . . . . . . . . . . Times Spotted 527 | . 6 2 . 10 18 6 20 25 1 1 15 4 35 1 33 . 12 4 16 4 . 24 23 42 15 14 37 40 35 35 49 Peak Tracking Total 9 | . 3 2 . 7 5 3 3 8 1 1 5 4 9 1 6 . 4 4 4 3 . 7 4 5 5 2 5 7 7 5 8 Tactical Retreats 30 | . . . . 2 1 . . 2 . . . 1 1 . 4 . 3 . 1 2 . 4 1 4 . . 1 . 1 1 1 Traps | -11 -10 -10 -9 -9 -9 -9 -7 -7 -7 -7 -7 -7 -6 -6 -6 -6 -6 -5 -5 -5 -5 -4 -4 -4 -4 -4 -4 -3 -2 -2 -1 ------- Run | Yrd Mat Min Mat Sto Gar Rec Fac Gar Fac Low Low Zio Pro Fac Gar Fac DSF Fac Upp Upp Zhi Pro Fac Ext Cet Arc Hub Res Res Qua Acc Traps Triggered 15 | . . . . 1 1 . 2 1 1 . . . . . 1 . 2 . . . . . . . . . . 2 1 3 . Indirectly . | . . . . . . . . . . . . . . . . . . . . . . . . . . . . . . . . Trap Hack Attempts . | . . . . . . . . . . . . . . . . . . . . . . . . . . . . . . . . Triggered . | . . . . . . . . . . . . . . . . . . . . . . . . . . . . . . . . Disarmed . | . . . . . . . . . . . . . . . . . . . . . . . . . . . . . . . . Reprogrammed . | . . . . . . . . . . . . . . . . . . . . . . . . . . . . . . . . Reused . | . . . . . . . . . . . . . . . . . . . . . . . . . . . . . . . . Traps Extracted . | . . . . . . . . . . . . . . . . . . . . . . . . . . . . . . . . Installed . | . . . . . . . . . . . . . . . . . . . . . . . . . . . . . . . . Triggered . | . . . . . . . . . . . . . . . . . . . . . . . . . . . . . . . . Machines | -11 -10 -10 -9 -9 -9 -9 -7 -7 -7 -7 -7 -7 -6 -6 -6 -6 -6 -5 -5 -5 -5 -4 -4 -4 -4 -4 -4 -3 -2 -2 -1 ---------- Run | Yrd Mat Min Mat Sto Gar Rec Fac Gar Fac Low Low Zio Pro Fac Gar Fac DSF Fac Upp Upp Zhi Pro Fac Ext Cet Arc Hub Res Res Qua Acc Machines Disabled 72 | . 4 . . . 1 . . 7 . . . . . . 8 . 1 . . . . 1 3 7 2 1 5 4 1 24 3 Max in Single Turn 4 | . 4 . . . 1 . . 2 . . . . . . 2 . . . . . . 1 1 2 1 1 1 1 1 3 2 Garrison Access 7 | . . . . . . . . . . . . . . . . . . . . . . . . . . . 1 3 1 1 1 Garrison Relay 8 | . . . . . 1 . . 4 . . . . . . 3 . . . . . . . . . . . . . . . . Phase Generator 2 | . . . . . . . . 1 . . . . . . 1 . . . . . . . . . . . . . . . . Machines Repaired . | . . . . . . . . . . . . . . . . . . . . . . . . . . . . . . . . Machines Dismantled 4 | . . . . . . . . . . . . . . . . . . . . . . . . 1 2 . . . . 1 . Machines Sabotaged . | . . . . . . . . . . . . . . . . . . . . . . . . . . . . . . . . Overloaded Fab Kills . | . . . . . . . . . . . . . . . . . . . . . . . . . . . . . . . . Hacking | -11 -10 -10 -9 -9 -9 -9 -7 -7 -7 -7 -7 -7 -6 -6 -6 -6 -6 -5 -5 -5 -5 -4 -4 -4 -4 -4 -4 -3 -2 -2 -1 --------- Run | Yrd Mat Min Mat Sto Gar Rec Fac Gar Fac Low Low Zio Pro Fac Gar Fac DSF Fac Upp Upp Zhi Pro Fac Ext Cet Arc Hub Res Res Qua Acc Machines Accessed 84 | . . . . 3 2 10 10 2 2 . . . 4 2 . 2 . . 3 . 4 . 5 6 2 1 5 7 5 6 3 Terminals 39 | . . . . 1 2 5 3 2 1 . . . 2 1 . 1 . . . . . . 1 6 2 . 4 2 2 3 1 Fabricators 6 | . . . . . . . 1 . . . . . . . . . . . . . . . 1 . . . . 3 1 . . Repair Stations 8 | . . . . 1 . . 1 . 1 . . . 1 . . 1 . . . . . . 1 . . . . 1 . 1 . Recycling Units 14 | . . . . . . 5 4 . . . . . 1 . . . . . . . . . 2 . . . . . 1 . 1 Scanalyzers 2 | . . . . . . . . . . . . . . . . . . . . . . . . . . . . 1 . 1 . Garrison Access 7 | . . . . 1 . . 1 . . . . . . 1 . . . . . . . . . . . . 1 . 1 1 1 Total Hacks 208 | . . . . 6 5 26 18 5 4 . . . 8 4 1 3 . . 8 . 17 . 7 15 9 25 10 16 9 8 4 Successful 116 | . . . . 2 2 10 6 . 1 . . . 3 1 . 2 . . 8 . 17 . 4 8 4 25 6 5 6 3 3 Failed 90 | . . . . 4 3 15 12 5 3 . . . 5 3 1 1 . . . . . . 3 6 5 . 4 11 3 5 1 Catastrophic 22 | . . . . 1 . 4 4 1 1 . . . 2 . . 1 . . . . . . . 2 . . 1 2 . 2 1 Database Lockouts 2 | . . . . . . 1 . . . . . . . . . . . . . . . . . 1 . . . . . . . Manual 37 | . . . . 1 1 14 4 . 1 . . . 1 . . . . . . . . 1 1 8 1 . 2 . . . 2 Terminals 91 | . . . . 1 5 17 7 5 1 . . . 2 3 1 1 . . . . . . 1 15 9 . 9 5 4 4 1 Fabricators 11 | . . . . . . . 1 . . . . . . . . . . . . . . . 2 . . . . 6 2 . . Repair Stations 18 | . . . . 3 . . 2 . 3 . . . 3 . . 2 . . . . . . 2 . . . . 2 . 1 . Recycling Units 25 | . . . . . . 9 7 . . . . . 3 . . . . . . . . . 2 . . . . . 2 . 2 Scanalyzers 5 | . . . . . . . . . . . . . . . . . . . . . . . . . . . . 3 . 2 . Garrison Access 8 | . . . . 2 . . 1 . . . . . . 1 . . . . . . . . . . . . 1 . 1 1 1 Terminal Hacks 86 | . . . . . 2 4 2 . . . . . 2 . . 1 . . 8 . 17 . . 8 4 25 5 2 3 2 1 Record 52 | . . . . . . . 1 . . . . . 1 . . . . . 6 . 5 . . . 4 25 3 2 3 2 . Part Schematic 4 | . . . . . . . . . . . . . . . . . . . . . 4 . . . . . . . . . . Robot Analysis 7 | . . . . . . 2 . . . . . . . . . . . . . . 4 . . 1 . . . . . . . Prototype ID Bank 4 | . . . . . . . . . . . . . . . . . . . . . 4 . . . . . . . . . . Open Door 5 | . . . . . . . . . . . . . 1 . . . . . 2 . . . . 2 . . . . . . . Open DSF 1 | . . . . . . . . . . . . . . . . 1 . . . . . . . . . . . . . . . Emergency Access Points 1 | . . . . . 1 . . . . . . . . . . . . . . . . . . . . . . . . . . Machine Index 1 | . . . . . . . . . . . . . . . . . . . . . . . . 1 . . . . . . . Repair Station Index 1 | . . . . . . . 1 . . . . . . . . . . . . . . . . . . . . . . . . Recycling Unit Index 1 | . . . . . . 1 . . . . . . . . . . . . . . . . . . . . . . . . . Unreport Threat 2 | . . . . . . . . . . . . . . . . . . . . . . . . 1 . . 1 . . . . Recall Reinforcements 1 | . . . . . . . . . . . . . . . . . . . . . . . . . . . . . . . 1 Registered Components 2 | . . . . . . . . . . . . . . . . . . . . . . . . 1 . . 1 . . . . Registered Prototypes 1 | . . . . . . . . . . . . . . . . . . . . . . . . 1 . . . . . . . Zone Layout 2 | . . . . . . 1 . . . . . . . . . . . . . . . . . 1 . . . . . . . Garrison Registry 1 | . . . . . 1 . . . . . . . . . . . . . . . . . . . . . . . . . . Fabricator Hacks 4 | . . . . . . . . . . . . . . . . . . . . . . . 2 . . . . 1 1 . . Load Schematic 3 | . . . . . . . . . . . . . . . . . . . . . . . 1 . . . . 1 1 . . Build 1 | . . . . . . . . . . . . . . . . . . . . . . . 1 . . . . . . . . Repair Station Hacks 6 | . . . . 1 . . 1 . 1 . . . . . . 1 . . . . . . 1 . . . . 1 . . . Scan Component 6 | . . . . 1 . . 1 . 1 . . . . . . 1 . . . . . . 1 . . . . 1 . . . Recycling Unit Hacks 12 | . . . . . . 6 2 . . . . . 1 . . . . . . . . . 1 . . . . . 1 . 1 Retrieve Components 12 | . . . . . . 6 2 . . . . . 1 . . . . . . . . . 1 . . . . . 1 . 1 Scanalyzer 1 | . . . . . . . . . . . . . . . . . . . . . . . . . . . . 1 . . . Insert Component 1 | . . . . . . . . . . . . . . . . . . . . . . . . . . . . 1 . . . Garrison Access Hacks 7 | . . . . 1 . . 1 . . . . . . 1 . . . . . . . . . . . . 1 . 1 1 1 Unlock Access 3 | . . . . 1 . . 1 . . . . . . 1 . . . . . . . . . . . . . . . . . Seal Access 4 | . . . . . . . . . . . . . . . . . . . . . . . . . . . 1 . 1 1 1 Unauthorized Hacks . | . . . . . . . . . . . . . . . . . . . . . . . . . . . . . . . . Terminals . | . . . . . . . . . . . . . . . . . . . . . . . . . . . . . . . . Fabricators . | . . . . . . . . . . . . . . . . . . . . . . . . . . . . . . . . Repair Stations . | . . . . . . . . . . . . . . . . . . . . . . . . . . . . . . . . Recycling Units . | . . . . . . . . . . . . . . . . . . . . . . . . . . . . . . . . Scanalyzers . | . . . . . . . . . . . . . . . . . . . . . . . . . . . . . . . . Garrison Access . | . . . . . . . . . . . . . . . . . . . . . . . . . . . . . . . . Data Cores Recovered . | . . . . . . . . . . . . . . . . . . . . . . . . . . . . . . . . Used . | . . . . . . . . . . . . . . . . . . . . . . . . . . . . . . . . Hacking Detections 58 | . . . . 3 2 7 10 2 2 . . . 2 1 . 2 . . . . . . 4 3 1 . 3 7 4 3 2 Full Trace Events 12 | . . . . 1 . . 1 2 . . . . 1 1 . . . . . . . . 1 . 1 . 1 2 . . 1 Feedback Events . | . . . . . . . . . . . . . . . . . . . . . . . . . . . . . . . . Feedback Blocked . | . . . . . . . . . . . . . . . . . . . . . . . . . . . . . . . . Robot Schematics Acquired . | . . . . . . . . . . . . . . . . . . . . . . . . . . . . . . . . Robots Built . | . . . . . . . . . . . . . . . . . . . . . . . . . . . . . . . . Authchips . | . . . . . . . . . . . . . . . . . . . . . . . . . . . . . . . . Time . | . . . . . . . . . . . . . . . . . . . . . . . . . . . . . . . . Total Robot Build Rating . | . . . . . . . . . . . . . . . . . . . . . . . . . . . . . . . . Part Schematics Acquired 8 | . . . . . . . . . . . . . . . . . . . . . 4 . . . . . . . . 4 . Parts Built 1 | . . . . . . . . . . . . . . . . . . . . . . . 1 . . . . . . . . Authchips . | . . . . . . . . . . . . . . . . . . . . . . . . . . . . . . . . Time 93 | . . . . . . . . . . . . . . . . . . . . . . . 93 . . . . . . . . Total Part Build Rating 7 | . . . . . . . . . . . . . . . . . . . . . . . 7 . . . . . . . . Part Studies Acquired . | . . . . . . . . . . . . . . . . . . . . . . . . . . . . . . . . Parts Repaired . | . . . . . . . . . . . . . . . . . . . . . . . . . . . . . . . . Time . | . . . . . . . . . . . . . . . . . . . . . . . . . . . . . . . . Parts Recycled . | . . . . . . . . . . . . . . . . . . . . . . . . . . . . . . . . Recycled Matter . | . . . . . . . . . . . . . . . . . . . . . . . . . . . . . . . . Retrieved Matter . | . . . . . . . . . . . . . . . . . . . . . . . . . . . . . . . . Retrieved Components 34 | . . . . . . 5 5 . . . . . 2 . . . . . . . . . 10 . . . . . 2 . 10 Parts Scanalyzed . | . . . . . . . . . . . . . . . . . . . . . . . . . . . . . . . . Part Schematics Acquired . | . . . . . . . . . . . . . . . . . . . . . . . . . . . . . . . . Parts Damaged . | . . . . . . . . . . . . . . . . . . . . . . . . . . . . . . . . Bothacking | -11 -10 -10 -9 -9 -9 -9 -7 -7 -7 -7 -7 -7 -6 -6 -6 -6 -6 -5 -5 -5 -5 -4 -4 -4 -4 -4 -4 -3 -2 -2 -1 ------------ Run | Yrd Mat Min Mat Sto Gar Rec Fac Gar Fac Low Low Zio Pro Fac Gar Fac DSF Fac Upp Upp Zhi Pro Fac Ext Cet Arc Hub Res Res Qua Acc Used RIF Installer 5 | . . . . . 2 . . 1 . . . . . . 2 . . . . . . . . . . . . . . . . Threat Obfuscator 1 | . . . . . . . . . . . . . . . 1 . . . . . . . . . . . . . . . . Robot Detection 1 | . . . . . . . . 1 . . . . . . . . . . . . . . . . . . . . . . . Watcher Feeds 1 | . . . . . 1 . . . . . . . . . . . . . . . . . . . . . . . . . . Autooverride 1 | . . . . . . . . . . . . . . . 1 . . . . . . . . . . . . . . . . Robots Hacked 32 | . . . . . . . . 10 1 . 1 . 3 . 4 . 1 . 2 . 3 1 2 1 1 . . 1 . 1 . Non-combat 2 | . . . . . . . . . 1 . . . . . . . . . . . . . 1 . . . . . . . . Combat 28 | . . . . . . . . 10 . . 1 . 3 . 4 . 1 . 2 . 3 . 1 . 1 . . 1 . 1 . Autooverrided 1 | . . . . . . . . . . . . . . . . . . . 1 . . . . . . . . . . . . Robot Hacks Applied 32 | . . . . . . . . 12 1 . 1 . 3 . 4 . 1 . 1 . 4 . 2 . 1 . . 1 . 1 . parse_system 10 | . . . . . . . . 2 . . . . . . . . . . . . 4 . 1 . 1 . . 1 . 1 . no_distress 1 | . . . . . . . . . . . . . . . . . . . . . . . 1 . . . . . . . . ignore_repairs 1 | . . . . . . . . . 1 . . . . . . . . . . . . . . . . . . . . . . formatsys_high 20 | . . . . . . . . 10 . . 1 . 3 . 4 . 1 . 1 . . . . . . . . . . . . Manual 2 | . . . . . . . . . . . . . . . . . . . . . . 1 . 1 . . . . . . . Relay Couplers Released 40 | . . . . . 3 . . 16 . . . . . . 15 . . . . . . . . . . . 3 3 . . . Machine Destruction 37 | . . . . . 3 . . 16 . . . . . . 15 . . . . . . . . . . . . 3 . . . Programmers 3 | . . . . . . . . . . . . . . . . . . . . . . . . . . . 3 . . . . Attached 18 | . . . . . . . . 8 . . 1 . 1 . 5 . 1 . 1 . . . . . . . . 1 . . . Fabnet Peak Effective % . | . . . . . . . . . . . . . . . . . . . . . . . . . . . . . . . . Robots Rewired 25 | . . . . . . 4 . . . . 2 . 6 . . . . . . . . . . 13 . . . . . . . Allies Hacked 2 | . . . . . . . . . . . . . . . . . . . 1 . . . . . . . 1 . . . . Hacks Repelled . | . . . . . . . . . . . . . . . . . . . . . . . . . . . . . . . . Allies | -11 -10 -10 -9 -9 -9 -9 -7 -7 -7 -7 -7 -7 -6 -6 -6 -6 -6 -5 -5 -5 -5 -4 -4 -4 -4 -4 -4 -3 -2 -2 -1 -------- Run | Yrd Mat Min Mat Sto Gar Rec Fac Gar Fac Low Low Zio Pro Fac Gar Fac DSF Fac Upp Upp Zhi Pro Fac Ext Cet Arc Hub Res Res Qua Acc Total Allies 59 | . . 2 . . . 4 . 10 . . 3 . 10 . 4 . 1 . 2 . . 1 . 17 5 . . . . . . Largest Group 9 | . . 2 2 2 . 4 . 6 . . 3 3 6 . 2 . 1 . 1 . . 1 . 9 8 8 6 . . . . Highest-Rated Group 714 | . . 53 53 53 . 70 . 226 . . 66 66 168 . 64 . 90 . 41 . . 116 . 473 714 708 509 . . . . Highest-Rated Ally 159 | . . 31 31 31 . 21 . 85 . . 25 25 47 . 32 . 90 . 41 . . 116 . 159 159 159 96 . . . . Total Orders 18 | . . . . . . 1 . 8 . . . . . 1 4 . . . . . . . 2 . . . . . . 2 . STAY 6 | . . . . . . 1 . 4 . . . . . . 1 . . . . . . . . . . . . . . . . ROAM 1 | . . . . . . . . 1 . . . . . . . . . . . . . . . . . . . . . . . FOLLOW 3 | . . . . . . . . 3 . . . . . . . . . . . . . . . . . . . . . . . EXPLORE 3 | . . . . . . . . . . . . . . . 1 . . . . . . . . . . . . . . 2 . RETURN 5 | . . . . . . . . . . . . . . 1 2 . . . . . . . 2 . . . . . . . . Ally Attacks 404 | . . 2 . . . 8 . 41 . . 1 . 43 . 11 . 5 . 2 . . 5 . 88 79 25 94 . . . . Total Damage 13575 | . . 44 . . . 270 . 1281 . . 42 . 955 . 248 . 240 . 47 . . 359 . 2706 2636 1044 3703 . . . . Kills 64 | . . . . . . 3 . 11 . . . . 5 . 1 . 3 . . . . 1 . 12 9 3 16 . . . . Allies Corrupted 1 | . . . . 1 . . . . . . . . . . . . . . . . . . . . . . . . . . . Allies Melted . | . . . . . . . . . . . . . . . . . . . . . . . . . . . . . . . . Intel | -11 -10 -10 -9 -9 -9 -9 -7 -7 -7 -7 -7 -7 -6 -6 -6 -6 -6 -5 -5 -5 -5 -4 -4 -4 -4 -4 -4 -3 -2 -2 -1 ------- Run | Yrd Mat Min Mat Sto Gar Rec Fac Gar Fac Low Low Zio Pro Fac Gar Fac DSF Fac Upp Upp Zhi Pro Fac Ext Cet Arc Hub Res Res Qua Acc Active Infowar (turns) 10581 | . . . . . . . 69 5 . . . . . . . . . . . . . 1282 569 732 419 486 1414 1587 2033 1598 387 Sensors 10579 | . . . . . . . 69 5 . . . . . . . . . . . . . 1282 567 732 419 486 1414 1587 2033 1598 387 IFF 4 | . . . . . . . . . . . . . . . . . . . . . . . . . . . . 4 . . . Terrain 2 | . . . . . . . . . . . . . . . . . . . . . . . 2 . . . . . . . . Robot Analysis Total 7 | . . . . . . 2 . . . . . . . . . . . . . . 4 . . 1 . . . . . . . Derelict Logs Recovered 8 | . . 1 . . . . . . . 1 2 . 1 . . . . . 1 1 . 1 . . . . . . . . . Drone Launches 12 | . . . . . . . . . . . . . . 1 2 . . . . . . . 2 2 . . . . . 4 1 Drone Recoveries 7 | . . . . . . . . . . . . . . 1 2 . . . . . . . 2 . . . . . . 2 . Exploration | -11 -10 -10 -9 -9 -9 -9 -7 -7 -7 -7 -7 -7 -6 -6 -6 -6 -6 -5 -5 -5 -5 -4 -4 -4 -4 -4 -4 -3 -2 -2 -1 ------------- Run | Yrd Mat Min Mat Sto Gar Rec Fac Gar Fac Low Low Zio Pro Fac Gar Fac DSF Fac Upp Upp Zhi Pro Fac Ext Cet Arc Hub Res Res Qua Acc Turns Passed 37997 | 57 184 225 7 326 1884 1145 2168 2828 211 730 2082 330 2481 406 2179 142 405 86 1685 1121 320 1939 1983 2045 755 486 1414 1885 2037 2382 2069 Spaces Moved 22787 | 41 103 161 6 163 1197 809 1520 1959 129 486 1582 265 1873 302 1259 103 237 67 1306 852 217 1178 871 902 373 238 640 940 901 1004 1103 Core 114 | 1 . . . 1 2 . . . . . . . . . . . . . . . . . . . . . . . . . 110 Treads 7237 | . . . . . . . . . . . . . . . 7 . . . . . . 506 871 793 344 238 640 940 901 1004 993 Legs 13763 | 40 103 161 6 162 371 . 1480 1959 129 486 1582 265 1873 302 1252 103 237 67 1306 852 217 672 . 109 29 . . . . . . Wheels . | . . . . . . . . . . . . . . . . . . . . . . . . . . . . . . . . Hover 1673 | . . . . . 824 809 40 . . . . . . . . . . . . . . . . . . . . . . . . Flight . | . . . . . . . . . . . . . . . . . . . . . . . . . . . . . . . . Fastest Speed 50 | 50 120 120 120 120 56 116 120 123 123 123 123 123 100 120 120 120 120 120 120 125 130 130 160 120 120 160 160 160 135 135 50 Average Speed 134 | 118 120 120 120 120 130 116 122 123 152 147 123 123 104 120 138 129 140 120 121 128 130 145 160 160 159 160 160 160 153 150 135 Slowest Speed 1850 | 120 120 120 120 250 300 116 260 195 195 195 195 123 190 120 330 190 270 120 176 130 133 210 160 400 190 160 160 160 215 215 1850 Overloaded Moves . | . . . . . . . . . . . . . . . . . . . . . . . . . . . . . . . . Propulsion Burnouts . | . . . . . . . . . . . . . . . . . . . . . . . . . . . . . . . . Robots Hopped . | . . . . . . . . . . . . . . . . . . . . . . . . . . . . . . . . Potential Cave-ins 2 | . . . . . . . . . . . . . . . . . . . . . . . . . . . . . 2 . . Cave-ins Triggered . | . . . . . . . . . . . . . . . . . . . . . . . . . . . . . . . . Teleports 1 | . . . . . . . . . . . . . . . . . . . . . . . . . . . . . . . 1 Exploration Rate (%) 51 | 3 30 33 2 19 67 93 23 97 3 62 98 13 96 8 98 4 89 1 96 84 60 98 15 87 94 90 35 26 20 71 24 Regions Visited 31 Branch Regions 16 Pre-discovered Areas 6 | . . 1 . . . . . . . . 1 . 1 . . . . . . . 3 . . . . . . . . . . Known Exits Taken 18 | . 1 1 1 1 . . 1 . . 1 . . . 1 . 1 . . . 1 1 1 . 1 1 1 1 1 1 1 . Unknown Exits Taken 9 | 1 . . . . . 1 . . 1 . 1 1 1 . . . . 1 1 . . . 1 . . . . . . . . Scrap Searched 14 | . . . . . . . . . . 2 3 . 2 . . . . . 4 2 . 1 . . . . . . . . . Spaces Dug 56 | . . . . . . 2 . 17 . . . . . . 4 . . . 1 . . . 3 . . . . 6 17 6 . Terrain Destroyed 712 | . . . . . 2 2 . 85 . 4 39 2 43 2 162 . . 1 6 . . 14 21 6 . 4 48 20 50 173 28 Melee 31 | . . . . . . . . 17 . . . . . . 3 . . . 1 . . . 2 . . . . 2 2 4 . Projectile 374 | . . . . . . 2 . . . 4 39 2 41 2 15 . . 1 5 . . 14 11 6 . 4 48 18 48 106 8 AOE 304 | . . . . . 2 . . 68 . . . . . . 143 . . . . . . . 8 . . . . . . 63 20 Terrain Rammed . | . . . . . . . . . . . . . . . . . . . . . . . . . . . . . . . . Walls Destroyed . | . . . . . . . . . . . . . . . . . . . . . . . . . . . . . . . . Machines Disabled . | . . . . . . . . . . . . . . . . . . . . . . . . . . . . . . . . Actions | -11 -10 -10 -9 -9 -9 -9 -7 -7 -7 -7 -7 -7 -6 -6 -6 -6 -6 -5 -5 -5 -5 -4 -4 -4 -4 -4 -4 -3 -2 -2 -1 --------- Run | Yrd Mat Min Mat Sto Gar Rec Fac Gar Fac Low Low Zio Pro Fac Gar Fac DSF Fac Upp Upp Zhi Pro Fac Ext Cet Arc Hub Res Res Qua Acc Total 28150 | 46 130 193 6 241 1394 963 1708 2233 135 494 1669 268 2325 342 1577 110 285 70 1376 872 248 1328 1331 1331 477 300 920 1214 1420 1671 1473 Wait 2844 | . . 30 . 31 52 91 46 130 . . 28 . 320 23 122 . 10 1 25 4 . 78 339 217 41 32 202 129 367 378 148 Move 22759 | 40 102 160 5 163 1196 808 1520 1958 128 485 1581 264 1872 302 1258 102 236 66 1305 851 216 1177 870 901 372 237 639 939 900 1003 1103 Hop . | . . . . . . . . . . . . . . . . . . . . . . . . . . . . . . . . Pick Up 186 | . 7 1 . 6 18 2 14 14 . 1 4 1 8 3 15 . . 1 5 4 2 5 9 8 4 1 1 5 15 17 15 Fast Attach 284 | 6 1 . . 4 10 2 27 11 . 1 3 . 3 4 18 3 6 . 7 1 8 11 15 22 6 5 10 23 13 38 26 Attach 105 | . . . 1 1 2 . 5 5 . . 2 . 1 2 10 . 1 1 2 . . . 5 7 1 . . 4 11 20 24 Detach 89 | . . . . . 2 . 5 5 . . 2 . 2 1 14 1 1 . 2 . . 2 5 5 3 1 2 7 3 12 14 Swap 267 | . 5 1 . 7 21 7 11 21 . 4 4 2 19 1 18 2 4 . 5 3 2 5 18 14 5 2 10 28 15 11 22 Drop 332 | . . 1 . 4 25 3 31 16 . 1 4 1 16 4 26 2 4 . 7 6 9 11 16 22 7 3 11 24 19 33 26 Fire 1011 | . 15 . . 25 63 27 48 43 7 2 25 . 66 2 88 . 13 1 17 3 11 39 50 70 17 19 45 53 75 93 94 Melee 54 | . . . . . . . . 26 . . . . . . 3 . . . 1 . . . 3 . . . . 2 2 17 . Ram 1 | . . . . . . . . . . . . . . . . . . . . . . . . . . . . . . . 1 Kick 1 | . . . . . . . 1 . . . . . . . . . . . . . . . . . . . . . . . . Crush 34 | . . . . . . . . . . . . . . . . . . . . . . . 1 . . . . . . 33 . Escape Stasis 24 | . . . . . 5 . . 4 . . . . . . 5 . 10 . . . . . . . . . . . . . . Rewire 114 | . . . . . . 23 . . . . 16 . 18 . . . . . . . . . . 57 . . . . . . . Trap . | . . . . . . . . . . . . . . . . . . . . . . . . . . . . . . . . Miscellaneous 45 | . . . . . . . . . . . . . . . . . . . . . . . . 8 21 . . . . 16 . Route ------- -11/Scrapyard -10/Materials (discovered 2 exits: *Mat / *Min) -10/Mines -9/Materials -9/Storage -9/Garrison (discovered 3 exits: *Rec x3) -9/Recycling -7/Factory (discovered 2 exits: *Fac / Gar) -7/Garrison (discovered 3 exits: *Fac x3) -7/Factory -7/Lower Caves -7/Lower Caves (discovered 2 exits: *Fac / [*Zio]) -7/Zion -6/Proximity Caves -6/Factory (discovered 5 exits: *Fac x4 / Gar) -6/Garrison (discovered 3 exits: *Fac x3) -6/Factory -6/DSF -5/Factory -5/Upper Caves -5/Upper Caves (discovered 2 exits: *Fac / *Zhi) -5/Zhirov -4/Proximity Caves -4/Factory -4/Extension (discovered 3 exits: *Res x2 / *Cet) -4/Cetus (discovered 3 exits: *Res x2 / *Arc) -4/Archives (discovered 3 exits: *Res / *Hub x2) -4/Hub_04(d) -3/Research -2/Research -2/Quarantine -1/Access History --------- Turn | Location | Event 6 | -11/Scrapyard | Discovered new exit (range 15) 58 | -11/Scrapyard | Entered Materials 171 | -10/Materials | Discovered new exit (range 14) 216 | -10/Materials | Discovered new exit (range 16) 232 | -10/Materials | Identified exit to Mines 242 | -10/Materials | Entered Mines 275 | -10/Mines | Joined a pair of Derelicts in attacking an 0b10 outpost 310 | -10/Mines | Build established: Mutant 370 | -10/Mines | Learned location of Storage (-9) 434 | -10/Mines | Discovered new exit (range 9) 443 | -10/Mines | Identified exit to Materials 467 | -10/Mines | Entered Materials 467 | -9/Materials | Accompanied by 2 allies 467 | -9/Materials | Evolved 2 slots: Utility x2 468 | -9/Materials | Discovered new exit (range 5) 472 | -9/Materials | Led the pair of lost Derelicts to an unsafe place 473 | -9/Materials | Identified exit to Storage 474 | -9/Materials | Entered Storage 474 | -9/Storage | Accompanied by 2 allies 800 | -9/Storage | Identified exit to Garrison 800 | -9/Storage | Entered Garrison 850 | -9/Garrison | Discovered new exit (range 57) 850 | -9/Garrison | Discovered new exit (range 47) 850 | -9/Garrison | Discovered new exit (range 40) 914 | -9/Garrison | Triggered checkpoint 928 | -9/Garrison | Garrison Relay disabled 1575 | -9/Garrison | Core integrity fell below 50% 1601 | -9/Garrison | Core integrity fell below 20% 1634 | -9/Garrison | Lost 4 parts (1p2n1w) 1914 | -9/Garrison | Build established: Scavenger-Mutant 1934 | -9/Garrison | Installed Relay Interface Framework 2453 | -9/Garrison | Triggered checkpoint 2602 | -9/Garrison | Expanded RIF knowledge: Watcher Feeds 2684 | -9/Garrison | Entered Recycling 3365 | -9/Recycling | Discovered new exit (range 8) 3829 | -9/Recycling | Entered Factory 3829 | -7/Factory | Evolved 4 slots: Propulsion x1, Utility x1, Weapon x2 4196 | -7/Factory | Build established: Gunner 4268 | -7/Factory | Lost 3 parts (3w) 4859 | -7/Factory | Discovered new exit (range 15) 5457 | -7/Factory | Build established: Bothacker-Tank 5997 | -7/Factory | Identified exit to Garrison 5997 | -7/Factory | Entered Garrison 6006 | -7/Garrison | Phase Generator disabled 6097 | -7/Garrison | Spotted B-75 Beast 6112 | -7/Garrison | Assimilated Beast 4a with formatsys_high 6351 | -7/Garrison | Triggered checkpoint 6359 | -7/Garrison | Garrison Relay disabled 6565 | -7/Garrison | Expanded RIF knowledge: Robot Detection 6600 | -7/Garrison | Build established: Bothacker-Gunner 6704 | -7/Garrison | Triggered checkpoint 6735 | -7/Garrison | Triggered checkpoint 6777 | -7/Garrison | Lost 5 allies 6801 | -7/Garrison | Triggered checkpoint 6868 | -7/Garrison | Garrison Relay disabled 6898 | -7/Garrison | Triggered checkpoint 6921 | -7/Garrison | Discovered new exit (range 11) 7143 | -7/Garrison | Triggered checkpoint 7251 | -7/Garrison | Discovered new exit (range 10) 7299 | -7/Garrison | Garrison Relay disabled 7805 | -7/Garrison | Discovered new exit (range 5) 8051 | -7/Garrison | Garrison Relay disabled 8073 | -7/Garrison | Triggered checkpoint 8825 | -7/Garrison | Entered Factory 8904 | -7/Factory | Discovered new exit (range 15) 9036 | -7/Factory | Entered Lower Caves 9401 | -7/Lower Caves | Identified exit to Lower Caves 9477 | -7/Lower Caves | Attracted the attention of an 0b10 checkpoint 9766 | -7/Lower Caves | Entered another Lower Caves area 9791 | -7/Lower Caves | Encountered a Warlord checkpoint 10235 | -7/Lower Caves | Learned 4 Factory zone layouts 10339 | -7/Lower Caves | Attacked by a faux Warlord 10481 | -7/Lower Caves | Discovered new exit (range 12) 11211 | -7/Lower Caves | Discovered new exit (range 13) 11848 | -7/Lower Caves | Entered Zion 11848 | -7/Zion | Accompanied by 3 allies 11926 | -7/Zion | Discovered new exit (range 15) 11990 | -7/Zion | System corruption cleaned by Quarantine Array 12035 | -7/Zion | Given the Hacking Drone Bay 12053 | -7/Zion | Found Prototype Device 12054 | -7/Zion | Identified Hacking Drone Bay 12127 | -7/Zion | RIF detected upon attempting to enter Zion 12127 | -7/Zion | Attacked by Zionites 12127 | -7/Zion | Spotted 3R-QBY(B) 12127 | -7/Zion | Spotted NV-4Q9(B) 12173 | -7/Zion | Lost 3 allies 12178 | -7/Zion | Entered Proximity Caves 12180 | -6/Proximity Caves | Greeted by an Infiltrator in a former 0b10 base 12240 | -6/Proximity Caves | Former 0b10 base attacked by MAIN.C 12543 | -6/Proximity Caves | Lost 9 allies 12578 | -6/Proximity Caves | 0b10 base defense nominally successful 12630 | -6/Proximity Caves | Destroyed 8 combat bots 12636 | -6/Proximity Caves | Lost 6 allies 12890 | -6/Proximity Caves | Attracted the attention of an 0b10 checkpoint 12892 | -6/Proximity Caves | Build established: Scavenger-Gunner 13662 | -6/Proximity Caves | Discovered new exit (range 16) 14011 | -6/Proximity Caves | Received a Behemoth hack from an annoying Tinkerer 14659 | -6/Proximity Caves | Entered Factory 14659 | -6/Factory | Evolved 2 slots: Power x1, Utility x1 14710 | -6/Factory | Identified exit to Factory 15065 | -6/Factory | Identified exit to Garrison 15065 | -6/Factory | Entered Garrison 15249 | -6/Garrison | Triggered checkpoint 15272 | -6/Garrison | Garrison Relay disabled 15454 | -6/Garrison | Phase Generator disabled 15576 | -6/Garrison | Triggered checkpoint 15590 | -6/Garrison | Build established: Bothacker-Gunner 15801 | -6/Garrison | Triggered checkpoint 15856 | -6/Garrison | Discovered new exit (range 10) 15863 | -6/Garrison | Triggered checkpoint 15990 | -6/Garrison | Expanded RIF knowledge: Autooverride 16034 | -6/Garrison | Garrison Relay disabled 16167 | -6/Garrison | Triggered checkpoint 16201 | -6/Garrison | Discovered new exit (range 12) 16215 | -6/Garrison | Expanded RIF knowledge: Threat Obfuscation 16332 | -6/Garrison | Triggered checkpoint 16438 | -6/Garrison | Discovered new exit (range 10) 16447 | -6/Garrison | Triggered checkpoint 16485 | -6/Garrison | Garrison Relay disabled 16877 | -6/Garrison | Build established: Scavenger-Tank 17244 | -6/Garrison | Entered Factory 17268 | -6/Factory | Found Prototype Processor 17268 | -6/Factory | Identified Exp. Targeting Computer 17280 | -6/Factory | Found Exp. Targeting Computer 17386 | -6/Factory | Identified exit to DSF 17386 | -6/Factory | Entered DSF 17433 | -6/DSF | Additional patrols routed to DSF 17475 | -6/DSF | Discovered exit to Factory (range 16) 17682 | -6/DSF | Build established: Gunner 17726 | -6/DSF | Sterilization system engaged 17746 | -6/DSF | Ambient heat levels rising (+10) 17761 | -6/DSF | Ambient heat levels rising (+10) 17776 | -6/DSF | Ambient heat levels rising (+10) 17791 | -6/DSF | Ambient heat levels rising (+10) 17791 | -6/DSF | Entered Factory 17791 | -5/Factory | Evolved 2 slots: Propulsion x1, Utility x1 17810 | -5/Factory | Discovered new exit (range 8) 17877 | -5/Factory | Entered Upper Caves 18030 | -5/Upper Caves | Learned Factory garrison access intel 19401 | -5/Upper Caves | Discovered new exit (range 13) 19471 | -5/Upper Caves | Entered an active Warlord outpost 19503 | -5/Upper Caves | Learned Extension trap positions 19503 | -5/Upper Caves | Learned Extension emergency access door positions 19503 | -5/Upper Caves | Learned Extension stockpile data 19503 | -5/Upper Caves | Learned Armory stockpile data 19503 | -5/Upper Caves | Learned Extension garrison access intel 19562 | -5/Upper Caves | Entered another Upper Caves area 19646 | -5/Upper Caves | Discovered new exit (range 6) 19671 | -5/Upper Caves | Identified exit to Factory 20096 | -5/Upper Caves | Discovered new exit (range 3) 20097 | -5/Upper Caves | Identified exit to Zhirov 20186 | -5/Upper Caves | Build established: Derelict-Gunner 20683 | -5/Upper Caves | Entered Zhirov 20683 | -5/Zhirov | Discovered new exit (range 3) 20707 | -5/Zhirov | Met Zhirov 20733 | -5/Zhirov | Zhirov requested help retrieving the SGEMP Prototype 20751 | -5/Zhirov | Learned location of Quarantine (-2) 20751 | -5/Zhirov | Learned location of Testing (-3) 20751 | -5/Zhirov | Learned location of Command (-1) 20844 | -5/Zhirov | Found Alien Artifact 20844 | -5/Zhirov | Identified Integrated Dissipator 20844 | -5/Zhirov | Installed Integrated Dissipator, increased core heat dissipation (+20) 20867 | -5/Zhirov | Found Alien Artifact 21002 | -5/Zhirov | Identified exit to Proximity Caves 21003 | -5/Zhirov | Entered Proximity Caves 21020 | -4/Proximity Caves | Acquired the password to a Derelict Tinkerer's latest research 21030 | -4/Proximity Caves | Found Prototype Special Weapon 21030 | -4/Proximity Caves | Identified Molecular Deconstructor 21107 | -4/Proximity Caves | Attracted the attention of an 0b10 checkpoint 21310 | -4/Proximity Caves | Caught by Unaware searching for contraband prototypes 21523 | -4/Proximity Caves | Lost 3 parts (1p2w) 21557 | -4/Proximity Caves | Found DCF Scrap (16 items) 21626 | -4/Proximity Caves | Caught by Unaware searching for contraband prototypes 21643 | -4/Proximity Caves | Spotted B-86 Titan 21827 | -4/Proximity Caves | Attracted the attention of an 0b10 outpost 21939 | -4/Proximity Caves | Befriended a Behemoth using the annoying Tinkerer's hack 22727 | -4/Proximity Caves | System corruption reached 10% 22818 | -4/Proximity Caves | Discovered exit to Factory (range 10) 22942 | -4/Proximity Caves | Entered Factory 22942 | -4/Factory | Evolved 2 slots: Utility x2 22943 | -4/Factory | Loaded intel: 4 garrison access locations 23286 | -4/Factory | Fabricated Assault Drone Bay (x1) 23440 | -4/Factory | Build established: Hacker-Tank 23768 | -4/Factory | Discovered new exit (range 16) 24011 | -4/Factory | Garrison activated, responded to threat 24724 | -4/Factory | Garrison activated, responded to threat 24925 | -4/Factory | Entered Extension 24926 | -4/Extension | Loaded intel: 9 trap records 25613 | -4/Extension | Central database locked down 25704 | -4/Extension | Rescued a captive Derelict 25705 | -4/Extension | Rescued a captive Derelict 25751 | -4/Extension | Spotted B-86 Titan 25765 | -4/Extension | Befriended a Behemoth using the annoying Tinkerer's hack 25776 | -4/Extension | Spotted B-86 Titan 25819 | -4/Extension | Allies destroyed B-86 Titan 25832 | -4/Extension | Lost 3 allies 25872 | -4/Extension | Discovered new exit (range 2) 25874 | -4/Extension | Identified exit to Research 26081 | -4/Extension | Discovered exit to Research (range 16) 26081 | -4/Extension | Discovered new exit (range 16) 26103 | -4/Extension | Identified exit to Cetus 26126 | -4/Extension | Build established: Hacker-Gunner 26335 | -4/Extension | Rescued A7 26489 | -4/Extension | Build established: Hacker-Tank 26718 | -4/Extension | Disrupted transfer network 26771 | -4/Extension | Lost 4 parts (1p2n1w) 26793 | -4/Extension | Build established: Scavenger-Tank 26970 | -4/Extension | Entered Cetus 26970 | -4/Cetus | Accompanied by 8 allies (A7) 26975 | -4/Cetus | Acquired a Cetus Manufacturing Module code from A7 26994 | -4/Cetus | Spotted Cetus Guard 26999 | -4/Cetus | Spotted Cetus Guard 27000 | -4/Cetus | Spotted Cetus Guard 27000 | -4/Cetus | Spotted Cetus Guard 27010 | -4/Cetus | Destroyed Cetus Guard 27021 | -4/Cetus | Allies destroyed Cetus Guard 27028 | -4/Cetus | Destroyed Cetus Guard 27030 | -4/Cetus | Allies destroyed Cetus Guard 27060 | -4/Cetus | Lost 4 allies 27103 | -4/Cetus | Discovered exit to Research (range 15) 27268 | -4/Cetus | Started Cetus Manufacturing Module 27293 | -4/Cetus | Manufactured an Enhanced Grunt 27298 | -4/Cetus | Escorted A7 to Cetus Mainframe 27318 | -4/Cetus | Manufactured an Enhanced Grunt 27343 | -4/Cetus | Manufactured an Enhanced Grunt 27368 | -4/Cetus | Manufactured an Enhanced Grunt 27393 | -4/Cetus | Manufactured an Enhanced Grunt 27495 | -4/Cetus | System corruption reached 10% 27563 | -4/Cetus | Discovered new exit (range 16) 27592 | -4/Cetus | Spotted Cetus Guard 27592 | -4/Cetus | Spotted Cetus Guard 27592 | -4/Cetus | Spotted Cetus Guard 27593 | -4/Cetus | Spotted Cetus Guard 27599 | -4/Cetus | Allies destroyed Cetus Guard 27607 | -4/Cetus | Allies destroyed Cetus Guard 27609 | -4/Cetus | Allies destroyed Cetus Guard 27616 | -4/Cetus | Allies destroyed Cetus Guard 27632 | -4/Cetus | Discovered exit to Research (range 15) 27643 | -4/Cetus | Met Revision 17 27704 | -4/Cetus | Identified exit to Archives 27720 | -4/Cetus | Security sweep announced 27725 | -4/Cetus | Entered Archives 27725 | -4/Archives | Accompanied by 8 allies (A7) 27730 | -4/Archives | Received a hacking code to weaken MAIN.C 27800 | -4/Archives | Unable to access archive contents 27810 | -4/Archives | Discovered exit to Research (range 15) 27823 | -4/Archives | Unable to access archive contents 27881 | -4/Archives | Discovered new exit (range 16) 27965 | -4/Archives | Identified exit to Hub_04(d) 28003 | -4/Archives | Discovered exit to Hub_04(d) (range 15) 28109 | -4/Archives | Unable to access archive contents 28211 | -4/Archives | Entered Hub_04(d) 28211 | -4/Hub_04(d) | Accompanied by 6 allies 28351 | -4/Hub_04(d) | Garrison activated, responded to threat 29040 | -4/Hub_04(d) | Discovered exit to Research (range 9) 29166 | -4/Hub_04(d) | Lost 4 allies 29625 | -4/Hub_04(d) | Entered Research 29625 | -3/Research | Evolved 2 slots: Utility x2 29887 | -3/Research | Revision forces began assault on 0b10 29887 | -3/Research | Met up with Revision 17++ 30066 | -3/Research | Identified Transdimensional Reconstructor 30387 | -3/Research | Research terminal network offline 30945 | -3/Research | Spotted Striker 30947 | -3/Research | Spotted Striker 30953 | -3/Research | Destroyed Striker 30958 | -3/Research | Destroyed Striker 31285 | -3/Research | Discovered new exit (range 13) 31306 | -3/Research | Identified exit to Research 31338 | -3/Research | Spotted Striker 31339 | -3/Research | Spotted Striker 31348 | -3/Research | Destroyed Striker 31367 | -3/Research | Destroyed Striker 31422 | -3/Research | Spotted Striker 31481 | -3/Research | Lost 3 allies 31484 | -3/Research | Spotted Striker 31488 | -3/Research | Destroyed Striker 31505 | -3/Research | Spotted Striker 31510 | -3/Research | Entered another Research area 31510 | -2/Research | Evolved 2 slots: Utility x2 31511 | -2/Research | Identified exit to Quarantine 32533 | -2/Research | Build established: Scavenger-Gunner 32716 | -2/Research | System corruption reached 10% 32726 | -2/Research | Lost 3 parts (2u1w) 33095 | -2/Research | Build established: Scavenger-Tank 33491 | -2/Research | Build established: Scavenger-Gunner 33547 | -2/Research | Entered Quarantine 33580 | -2/Quarantine | Scanned by Researcher 33668 | -2/Quarantine | Cryocooling Duct disabled 33683 | -2/Quarantine | Ambient heat levels rising (+20) 33683 | -2/Quarantine | Non-combat units ordered to evacuate 33714 | -2/Quarantine | Lost 3 parts (3u) 33942 | -2/Quarantine | Lost 7 parts (1p2n2u2w) 34017 | -2/Quarantine | Found Alien Energy Cannon 34017 | -2/Quarantine | Identified Core Cannon 34110 | -2/Quarantine | Found Alien Artifact 34110 | -2/Quarantine | Identified Phase Redirector 34414 | -2/Quarantine | Build established: Scavenger-Tank 34604 | -2/Quarantine | Found Alien Slashing Weapon 34604 | -2/Quarantine | Identified Sigix Broadsword 34831 | -2/Quarantine | Met incapacitated Sigix Warrior 34831 | -2/Quarantine | Lockdown squad dispatched 34881 | -2/Quarantine | Found Sigix Containment Pod 34895 | -2/Quarantine | Acquired the access code to the Sigix quarantine chamber 34976 | -2/Quarantine | Spotted Lightning 35091 | -2/Quarantine | Destroyed Lightning 35098 | -2/Quarantine | Spotted Lightning 35098 | -2/Quarantine | Spotted Lightning 35105 | -2/Quarantine | Core integrity fell below 50% 35111 | -2/Quarantine | Destroyed Lightning 35211 | -2/Quarantine | Found Alien Artifact 35211 | -2/Quarantine | Identified Subatomic Replicator 35269 | -2/Quarantine | System corruption reached 30% 35277 | -2/Quarantine | Destroyed Lightning 35310 | -2/Quarantine | Lost 4 parts (1n2u1w) 35528 | -2/Quarantine | Discovered new exit (range 60) 35797 | -2/Quarantine | First assault squad dispatched 35927 | -2/Quarantine | Identified exit to Access 35929 | -2/Quarantine | Entered Access 35929 | -1/Access | Evolved 2 slots: Power x2 36010 | -1/Access | Build established: Scavenger-Gunner 36648 | -1/Access | Destroyed 8 combat bots 36671 | -1/Access | Found Exp. Hacking Suite 36916 | -1/Access | Lost 5 parts (1p3u1w) 36931 | -1/Access | Spotted B-99 Colossus 36937 | -1/Access | Used Subatomic Replicator to replicate Exp. Biometal Heavy Treads 37261 | -1/Access | Found Prototype Launcher 37261 | -1/Access | Identified Enh. Gamma Bomb Array 37266 | -1/Access | Found Enh. Gamma Bomb Array 37271 | -1/Access | Found Enh. Gamma Bomb Array 37273 | -1/Access | Found Enh. Gamma Bomb Array 37855 | -1/Access | Warped through subspace 37856 | -1/Access | Core integrity fell below 50% 37884 | -1/Access | Lost 12 parts (3p2n2u5w) 37968 | -1/Access | Lost 5 parts (1p3u1w) 37971 | -1/Access | System corruption reached 10% 37982 | -1/Access | Core integrity fell below 20% 37998 | -1/Access | Core destroyed Last Messages --------------- Corrupted Railgun (-38). 37971_ P-80 Master suffers critical hit (Destroy). 37971_ Destroyed Imp. Antigrav System. 37978_ Recycling Unit disabled. 37979_ Slug penetrates Recycling Unit. 37979_ Slug penetrates Wall. 37980_ System corrupted: Railgun rejected. 37981_ Acquired Railgun. 37983_ Slug penetrates Door. 37987_ Slug penetrates P-80 Master. 37987_ Slug penetrates Wall. 37991_ System corrupted: Railgun jammed. 37995_ Slug penetrates P-80 Master. 37996_ Railgun destroyed. 37997_ Slammed into P-80 Master. [Achievement: 30k Club] [Achievement: 40k Club] [Achievement: 50k Club] [Achievement: Torch] Map ----- +----------------------------------------------------+ | ?????????????????????????????????????????????????? | | ?????????????????????????????????????????????????? | | ?????????????????????????????????????????????????? | | ?????????????????????????????????????????????????? | | ?????????????????????????????????????????????????? | | ?????????????????????????????????????????????????? | | ?????????????????????????????????????????????????? | | ?????????????????????????????????????????????????? | | ######???????????????????????????????????????????? | | #???????????????????????????????????????????? | | #???????????????????????????????????????????? | | #??????????????????????########?????????????? | | #?????????????????????? #?????????????? | | #?????????????????????# #?????????????? | | " #?????????????????????# ####??????????? | | #?????????????????????+ #??????????? | | #?????????????????????# #??????????? | | #?????????????????????# #??????????? | | +############??????????????# #??????????? | | # #??????????????# #??????????? | | # #??????????????# = #??????????? | | # """""" ################ #??????????? | | + """""" ?# ; #?????????????? | | # """"""??# # #?????????????? | | # """""???# """"""" # #?????????????? | | # """""???# / """Y"" @p# #?????????????? | | # ???# !=!== p# #?????????????? | | # ??# *=[! # #?????????????? | | ##########?################ #?????????????? | | #??????#############??????# #?????????????? | | #??????# #??????# #?????????????? | | #??????# #??????# #?????????????? | | ######## ######## #?????????????? | | % # + #????????????# | | % #% # #????????????# | | % # % #%% #????????????# | | + % /%% #????????????# | | # ] [#% #????????????# | | # !!% # #????????????# | | # !! # ########?????# | | #$% # ######## #?????# | | # %# #??????# #?????# | | # # #??????# #?????# | | # #############??????# #?????# | | # %#??????????????????# #?????# | | # #??????????????????# #?????# | | # #??????????????????# ####### | | # #??????????????????######## | | # #?????????????????????????# | | # #?????????????????????????# | +----------------------------------------------------+ Best States ------------- Heat Dissipation 155 Energy Generation 101 Energy Capacity 720 Matter Stores 300 Matter Capacity 300 Sight Range 16 Robot Scan Range 18 Terrain Scan Range 16 Terrain Scan Density 210 Power Amplification 40 Base Temperature (-) 150 EM Shielding 3 Corruption Containment 12 Corruption Block 20 Armor Coverage 3600 Resistance: KI 20 Resistance: TH 30 Resistance: EM 25 Propulsion Shielding 66 Weapon Cycling 20 Phase Shifting 15 Evasion (%) 70 Targeting Accuracy 12 Target Analysis 12 Core Analysis 6 Armor Integrity Analysis 40 Recoil Reduction 4 Energy Filtering 30 Particle Charging 30 Kinecelleration 40 Salvage Targeting 4 Offensive Hacking 25 Defensive Hacking 14 Relay Coupler Types 3 Relay Coupler Value 103 Item Schematics ----------------- Assault Drone Bay | -5/Zhirov | Free Exp. Heat Sink | -5/Zhirov | Free Exp. Optical Array | -5/Zhirov | Free Imp. Arc Thrower | -5/Zhirov | Free Centrium Heavy Treads | -2/Quarantine | Archive Cld. Plasma Rifle | -2/Quarantine | Archive Hvy. Dispersion Rifle | -2/Quarantine | Archive Imp. Quantum Reactor | -2/Quarantine | Archive Robot Schematics ------------------ None Fabricated ------------ Assault Drone Bay | x1 | -4/Factory Repaired ---------- Nothing Studied --------- None Alien Tech Used ----------------- Integrated Dissipator Core Cannon Phase Redirector Sigix Broadsword Subatomic Replicator Transdimensional Reconstructor Achievements -------------- 30k Club 40k Club 50k Club Adventurer Can't Touch This Explorer False Reunion Gun Specialist Gunslinger Hack The Planet Main Advantage More Power To You Pyromaniac Revolutionary Research Rockin' Loadout Tailor-made Tank Life Torch Turtlemind Ultimate Loadout Woof! Challenges ------------ None Game ------ Seed ConcussiveMiningRailcannon Manual? 0 Play Time 05:41:35 Cumulative 96.4 hours Start 2026.09.09 @ 16:19:08 End 2026.09.10 @ 04:08:26 Sessions 7 Manual Loads 0 Difficulty Rogue Special Mode None Game No. 112 Rogue 112 Adventurer 0 Explorer 0 Win Type - Total 0 Types 0/0/0/0/0/0/0/0/0/0 Lore% 44 Gallery% 48 Achievement% 41 Wizard Run 0 Options --------- Layout 1 ASCII 0 Keyboard 0 Movement Mouse Keybinds 0 Fullscreen 2 Font 24/Smallcaps Map View 50x35 Zoom Use 0% Tactical HUD 1 Map Filters NONE Filters NONE Steam 1 RUN: cff0b914-4c1b-4afc-b765-ba937a937876